{"text_format":"1","workbook":"xlsx","n_sheets":6,"sheets":["Voorpagina","Projecten","Acties","Medewerkers","Instellingen","Voorbeeld rapportage"],"not_rendered":{"charts":2,"images":10,"macros":1,"external_links":0,"defined_names":3,"comments":0,"pivot_tables":0},"unopened":[],"bounds":{"document_bytes":16777216,"sheet_cells":100000,"rows_first":2000,"rows_last":500,"rows_between":2000,"halvings":0,"cell_chars":16384,"cell_head_chars":4096},"cells_cut":0,"cells_raw":0,"read":"whole","date_system":"1900"}

{"sheet":"Voorpagina","index":0,"n_rows":18,"n_cols":5,"rows_kept":18,"cut":false,"hidden":false,"merged":[]}
[]
[]
[]
[]
[]
[]
[]
[]
[]
[]
[]
[]
[]
[]
[]
[]
[null,null,null,"*","info@terzake-excel.nl"]
[null,null,null,"(","0317 200 009"]

{"sheet":"Projecten","index":1,"n_rows":36,"n_cols":380,"rows_kept":36,"cut":false,"hidden":false,"merged":[[2,223,3,224],[2,276,3,277],[2,328,3,329],[2,119,3,120],[2,15,3,16],[2,67,3,68],[2,171,3,172]]}
["Sub knopverbergenkolommen()"]
["Application.ScreenUpdating = False","Het is vandaag:",{"$f":"TODAY()","v":"2023-12-21"},null,null,null,null,null,null,null,null,null,null,null,null,202401,202402,202403,202404,202405,202406,202407,202408,202409,202410,202411,202412,202413,202414,202415,202416,202417,202418,202419,202420,202421,202422,202423,202424,202425,202426,202427,202428,202429,202430,202431,202432,202433,202434,202435,202436,202437,202438,202439,202440,202441,202442,202443,202444,202445,202446,202447,202448,202449,202450,202451,202452,202501,202502,202503,202504,202505,202506,202507,202508,202509,202510,202511,202512,202513,202514,202515,202516,202517,202518,202519,202520,202521,202522,202523,202524,202525,202526,202527,202528,202529,202530,202531,202532,202533,202534,202535,202536,202537,202538,202539,202540,202541,202542,202543,202544,202545,202546,202547,202548,202549,202550,202551,202552,202601,202602,202603,202604,202605,202606,202607,202608,202609,202610,202611,202612,202613,202614,202615,202616,202617,202618,202619,202620,202621,202622,202623,202624,202625,202626,202627,202628,202629,202630,202631,202632,202633,202634,202635,202636,202637,202638,202639,202640,202641,202642,202643,202644,202645,202646,202647,202648,202649,202650,202651,202652,202653,202701,202702,202703,202704,202705,202706,202707,202708,202709,202710,202711,202712,202713,202714,202715,202716,202717,202718,202719,202720,202721,202722,202723,202724,202725,202726,202727,202728,202729,202730,202731,202732,202733,202734,202735,202736,202737,202738,202739,202740,202741,202742,202743,202744,202745,202746,202747,202748,202749,202750,202751,202752,202801,202802,202803,202804,202805,202806,202807,202808,202809,202810,202811,202812,202813,202814,202815,202816,202817,202818,202819,202820,202821,202822,202823,202824,202825,202826,202827,202828,202829,202830,202831,202832,202833,202834,202835,202836,202837,202838,202839,202840,202841,202842,202843,202844,202845,202846,202847,202848,202849,202850,202851,202852,202901,202902,202903,202904,202905,202906,202907,202908,202909,202910,202911,202912,202913,202914,202915,202916,202917,202918,202919,202920,202921,202922,202923,202924,202925,202926,202927,202928,202929,202930,202931,202932,202933,202934,202935,202936,202937,202938,202939,202940,202941,202942,202943,202944,202945,202946,202947,202948,202949,202950,202951,202952,203001,203002,203003,203004,203005,203006,203007,203008,203009,203010,203011,203012,203013,203014,203015,203016,203017,203018,203019,203020,203021,203022,203023,203024,203025,203026,203027,203028,203029,203030,203031,203032,203033,203034,203035,203036,203037,203038,203039,203040,203041,203042,203043,203044,203045,203046,203047,203048,203049,203050,203051,203052]
["Application.EnableEvents = False","Tonen in kalender:",2024,null,null,null,null,null,null,null,null,null,null,null,null,2024,null,null,null,null,null,null,null,null,null,null,null,null,null,null,null,null,null,null,null,null,null,null,null,null,null,null,null,null,null,null,null,null,null,null,null,null,null,null,null,null,null,null,null,null,null,null,null,null,null,null,null,2025,null,null,null,null,null,null,null,null,null,null,null,null,null,null,null,null,null,null,null,null,null,null,null,null,null,null,null,null,null,null,null,null,null,null,null,null,null,null,null,null,null,null,null,null,null,null,null,null,null,null,null,2026,null,null,null,null,null,null,null,null,null,null,null,null,null,null,null,null,null,null,null,null,null,null,null,null,null,null,null,null,null,null,null,null,null,null,null,null,null,null,null,null,null,null,null,null,null,null,null,null,null,null,null,2027,null,null,null,null,null,null,null,null,null,null,null,null,null,null,null,null,null,null,null,null,null,null,null,null,null,null,null,null,null,null,null,null,null,null,null,null,null,null,null,null,null,null,null,null,null,null,null,null,null,null,null,2028,null,null,null,null,null,null,null,null,null,null,null,null,null,null,null,null,null,null,null,null,null,null,null,null,null,null,null,null,null,null,null,null,null,null,null,null,null,null,null,null,null,null,null,null,null,null,null,null,null,null,null,null,2029,null,null,null,null,null,null,null,null,null,null,null,null,null,null,null,null,null,null,null,null,null,null,null,null,null,null,null,null,null,null,null,null,null,null,null,null,null,null,null,null,null,null,null,null,null,null,null,null,null,null,null,2030]
["ontgrendelen"]
[null,null,null,null,null,null,null,null,null,null,null,null,null,null,null,"Januari",null,null,null,"Februari",null,null,null,"Maart",null,null,null,null,"April",null,null,null,"Mei",null,null,null,null,"Juni",null,null,null,"Juli",null,null,null,"Augustus",null,null,null,null,"September",null,null,null,"Oktober",null,null,null,"November",null,null,null,null,"December",null,null,null,"Januari",null,null,null,null,"Februari",null,null,null,"Maart",null,null,null,"April",null,null,null,"Mei",null,null,null,null,"Juni",null,null,{"$f":"IF(MONTH(CP6+4)<>MONTH(CO6+4),MONTH(CP6+4),\"\")","v":7},"Juli",null,null,null,"Augustus",null,null,null,null,"September",null,null,null,"Oktober",null,null,null,null,"November",null,null,null,"December",null,null,null,"Januari",null,null,null,null,"Februari",null,null,null,"Maart",null,null,null,"April",null,null,null,null,"Mei",null,null,null,"Juni",null,null,null,"Juli",null,null,null,null,"Augustus",null,null,null,"September",null,null,null,"Oktober",null,null,null,null,"November",null,null,null,"December",null,null,null,"Januari",null,null,null,null,"Februari",null,null,null,"Maart",null,null,null,"April",null,null,null,null,"Mei",null,null,null,"Juni",null,null,null,"Juli",null,null,null,null,"Augustus",null,null,null,"September",null,null,null,"Oktober",null,null,null,null,"November",null,null,null,"December",null,null,null,"Januari",null,null,null,null,"Februari",null,null,null,"Maart",null,null,null,"April",null,null,null,null,"Mei",null,null,null,"Juni",null,null,null,"Juli",null,null,null,null,"Augustus",null,null,null,"September",null,null,null,"Oktober",null,null,null,null,"November",null,null,null,"December",null,null,null,null,"Januari",null,null,null,null,"Februari",null,null,null,"Maart",null,null,null,"April",null,null,null,null,"Mei",null,null,null,"Juni",null,null,null,"Juli",null,null,null,null,"Augustus",null,null,null,"September",null,null,null,"Oktober",null,null,null,null,"November",null,null,null,"December",null,null,null,"Januari",null,null,null,null,"Februari",null,null,null,"Maart",null,null,null,"April",null,null,null,null,"Mei",null,null,null,"Juni",null,null,null,"Juli",null,null,null,null,"Augustus",null,null,null,"September",null,null,null,"Oktober",null,null,null,null,"November",null,null,null,"December"]
["    Columns(\"F:K\").Select",null,null,null,null,null,null,null,null,null,null,null,null,null,null,"2024-01-01",{"$f":"P6+7","v":"2024-01-08"},{"$f":"Q6+7","v":"2024-01-15"},{"$f":"R6+7","v":"2024-01-22"},{"$f":"S6+7","v":"2024-01-29"},{"$f":"T6+7","v":"2024-02-05"},{"$f":"U6+7","v":"2024-02-12"},{"$f":"V6+7","v":"2024-02-19"},{"$f":"W6+7","v":"2024-02-26"},{"$f":"X6+7","v":"2024-03-04"},{"$f":"Y6+7","v":"2024-03-11"},{"$f":"Z6+7","v":"2024-03-18"},{"$f":"AA6+7","v":"2024-03-25"},{"$f":"AB6+7","v":"2024-04-01"},{"$f":"AC6+7","v":"2024-04-08"},{"$f":"AD6+7","v":"2024-04-15"},{"$f":"AE6+7","v":"2024-04-22"},{"$f":"AF6+7","v":"2024-04-29"},{"$f":"AG6+7","v":"2024-05-06"},{"$f":"AH6+7","v":"2024-05-13"},{"$f":"AI6+7","v":"2024-05-20"},{"$f":"AJ6+7","v":"2024-05-27"},{"$f":"AK6+7","v":"2024-06-03"},{"$f":"AL6+7","v":"2024-06-10"},{"$f":"AM6+7","v":"2024-06-17"},{"$f":"AN6+7","v":"2024-06-24"},{"$f":"AO6+7","v":"2024-07-01"},{"$f":"AP6+7","v":"2024-07-08"},{"$f":"AQ6+7","v":"2024-07-15"},{"$f":"AR6+7","v":"2024-07-22"},{"$f":"AS6+7","v":"2024-07-29"},{"$f":"AT6+7","v":"2024-08-05"},{"$f":"AU6+7","v":"2024-08-12"},{"$f":"AV6+7","v":"2024-08-19"},{"$f":"AW6+7","v":"2024-08-26"},{"$f":"AX6+7","v":"2024-09-02"},{"$f":"AY6+7","v":"2024-09-09"},{"$f":"AZ6+7","v":"2024-09-16"},{"$f":"BA6+7","v":"2024-09-23"},{"$f":"BB6+7","v":"2024-09-30"},{"$f":"BC6+7","v":"2024-10-07"},{"$f":"BD6+7","v":"2024-10-14"},{"$f":"BE6+7","v":"2024-10-21"},{"$f":"BF6+7","v":"2024-10-28"},{"$f":"BG6+7","v":"2024-11-04"},{"$f":"BH6+7","v":"2024-11-11"},{"$f":"BI6+7","v":"2024-11-18"},{"$f":"BJ6+7","v":"2024-11-25"},{"$f":"BK6+7","v":"2024-12-02"},{"$f":"BL6+7","v":"2024-12-09"},{"$f":"BM6+7","v":"2024-12-16"},{"$f":"BN6+7","v":"2024-12-23"},{"$f":"BO6+7","v":"2024-12-30"},{"$f":"BP6+7","v":"2025-01-06"},{"$f":"BQ6+7","v":"2025-01-13"},{"$f":"BR6+7","v":"2025-01-20"},{"$f":"BS6+7","v":"2025-01-27"},{"$f":"BT6+7","v":"2025-02-03"},{"$f":"BU6+7","v":"2025-02-10"},{"$f":"BV6+7","v":"2025-02-17"},{"$f":"BW6+7","v":"2025-02-24"},{"$f":"BX6+7","v":"2025-03-03"},{"$f":"BY6+7","v":"2025-03-10"},{"$f":"BZ6+7","v":"2025-03-17"},{"$f":"CA6+7","v":"2025-03-24"},{"$f":"CB6+7","v":"2025-03-31"},{"$f":"CC6+7","v":"2025-04-07"},{"$f":"CD6+7","v":"2025-04-14"},{"$f":"CE6+7","v":"2025-04-21"},{"$f":"CF6+7","v":"2025-04-28"},{"$f":"CG6+7","v":"2025-05-05"},{"$f":"CH6+7","v":"2025-05-12"},{"$f":"CI6+7","v":"2025-05-19"},{"$f":"CJ6+7","v":"2025-05-26"},{"$f":"CK6+7","v":"2025-06-02"},{"$f":"CL6+7","v":"2025-06-09"},{"$f":"CM6+7","v":"2025-06-16"},{"$f":"CN6+7","v":"2025-06-23"},{"$f":"CO6+7","v":"2025-06-30"},{"$f":"CP6+7","v":"2025-07-07"},{"$f":"CQ6+7","v":"2025-07-14"},{"$f":"CR6+7","v":"2025-07-21"},{"$f":"CS6+7","v":"2025-07-28"},{"$f":"CT6+7","v":"2025-08-04"},{"$f":"CU6+7","v":"2025-08-11"},{"$f":"CV6+7","v":"2025-08-18"},{"$f":"CW6+7","v":"2025-08-25"},{"$f":"CX6+7","v":"2025-09-01"},{"$f":"CY6+7","v":"2025-09-08"},{"$f":"CZ6+7","v":"2025-09-15"},{"$f":"DA6+7","v":"2025-09-22"},{"$f":"DB6+7","v":"2025-09-29"},{"$f":"DC6+7","v":"2025-10-06"},{"$f":"DD6+7","v":"2025-10-13"},{"$f":"DE6+7","v":"2025-10-20"},{"$f":"DF6+7","v":"2025-10-27"},{"$f":"DG6+7","v":"2025-11-03"},{"$f":"DH6+7","v":"2025-11-10"},{"$f":"DI6+7","v":"2025-11-17"},{"$f":"DJ6+7","v":"2025-11-24"},{"$f":"DK6+7","v":"2025-12-01"},{"$f":"DL6+7","v":"2025-12-08"},{"$f":"DM6+7","v":"2025-12-15"},{"$f":"DN6+7","v":"2025-12-22"},{"$f":"DO6+7","v":"2025-12-29"},{"$f":"DP6+7","v":"2026-01-05"},{"$f":"DQ6+7","v":"2026-01-12"},{"$f":"DR6+7","v":"2026-01-19"},{"$f":"DS6+7","v":"2026-01-26"},{"$f":"DT6+7","v":"2026-02-02"},{"$f":"DU6+7","v":"2026-02-09"},{"$f":"DV6+7","v":"2026-02-16"},{"$f":"DW6+7","v":"2026-02-23"},{"$f":"DX6+7","v":"2026-03-02"},{"$f":"DY6+7","v":"2026-03-09"},{"$f":"DZ6+7","v":"2026-03-16"},{"$f":"EA6+7","v":"2026-03-23"},{"$f":"EB6+7","v":"2026-03-30"},{"$f":"EC6+7","v":"2026-04-06"},{"$f":"ED6+7","v":"2026-04-13"},{"$f":"EE6+7","v":"2026-04-20"},{"$f":"EF6+7","v":"2026-04-27"},{"$f":"EG6+7","v":"2026-05-04"},{"$f":"EH6+7","v":"2026-05-11"},{"$f":"EI6+7","v":"2026-05-18"},{"$f":"EJ6+7","v":"2026-05-25"},{"$f":"EK6+7","v":"2026-06-01"},{"$f":"EL6+7","v":"2026-06-08"},{"$f":"EM6+7","v":"2026-06-15"},{"$f":"EN6+7","v":"2026-06-22"},{"$f":"EO6+7","v":"2026-06-29"},{"$f":"EP6+7","v":"2026-07-06"},{"$f":"EQ6+7","v":"2026-07-13"},{"$f":"ER6+7","v":"2026-07-20"},{"$f":"ES6+7","v":"2026-07-27"},{"$f":"ET6+7","v":"2026-08-03"},{"$f":"EU6+7","v":"2026-08-10"},{"$f":"EV6+7","v":"2026-08-17"},{"$f":"EW6+7","v":"2026-08-24"},{"$f":"EX6+7","v":"2026-08-31"},{"$f":"EY6+7","v":"2026-09-07"},{"$f":"EZ6+7","v":"2026-09-14"},{"$f":"FA6+7","v":"2026-09-21"},{"$f":"FB6+7","v":"2026-09-28"},{"$f":"FC6+7","v":"2026-10-05"},{"$f":"FD6+7","v":"2026-10-12"},{"$f":"FE6+7","v":"2026-10-19"},{"$f":"FF6+7","v":"2026-10-26"},{"$f":"FG6+7","v":"2026-11-02"},{"$f":"FH6+7","v":"2026-11-09"},{"$f":"FI6+7","v":"2026-11-16"},{"$f":"FJ6+7","v":"2026-11-23"},{"$f":"FK6+7","v":"2026-11-30"},{"$f":"FL6+7","v":"2026-12-07"},{"$f":"FM6+7","v":"2026-12-14"},{"$f":"FN6+7","v":"2026-12-21"},{"$f":"FO6+7","v":"2026-12-28"},{"$f":"FP6+7","v":"2027-01-04"},{"$f":"FQ6+7","v":"2027-01-11"},{"$f":"FR6+7","v":"2027-01-18"},{"$f":"FS6+7","v":"2027-01-25"},{"$f":"FT6+7","v":"2027-02-01"},{"$f":"FU6+7","v":"2027-02-08"},{"$f":"FV6+7","v":"2027-02-15"},{"$f":"FW6+7","v":"2027-02-22"},{"$f":"FX6+7","v":"2027-03-01"},{"$f":"FY6+7","v":"2027-03-08"},{"$f":"FZ6+7","v":"2027-03-15"},{"$f":"GA6+7","v":"2027-03-22"},{"$f":"GB6+7","v":"2027-03-29"},{"$f":"GC6+7","v":"2027-04-05"},{"$f":"GD6+7","v":"2027-04-12"},{"$f":"GE6+7","v":"2027-04-19"},{"$f":"GF6+7","v":"2027-04-26"},{"$f":"GG6+7","v":"2027-05-03"},{"$f":"GH6+7","v":"2027-05-10"},{"$f":"GI6+7","v":"2027-05-17"},{"$f":"GJ6+7","v":"2027-05-24"},{"$f":"GK6+7","v":"2027-05-31"},{"$f":"GL6+7","v":"2027-06-07"},{"$f":"GM6+7","v":"2027-06-14"},{"$f":"GN6+7","v":"2027-06-21"},{"$f":"GO6+7","v":"2027-06-28"},{"$f":"GP6+7","v":"2027-07-05"},{"$f":"GQ6+7","v":"2027-07-12"},{"$f":"GR6+7","v":"2027-07-19"},{"$f":"GS6+7","v":"2027-07-26"},{"$f":"GT6+7","v":"2027-08-02"},{"$f":"GU6+7","v":"2027-08-09"},{"$f":"GV6+7","v":"2027-08-16"},{"$f":"GW6+7","v":"2027-08-23"},{"$f":"GX6+7","v":"2027-08-30"},{"$f":"GY6+7","v":"2027-09-06"},{"$f":"GZ6+7","v":"2027-09-13"},{"$f":"HA6+7","v":"2027-09-20"},{"$f":"HB6+7","v":"2027-09-27"},{"$f":"HC6+7","v":"2027-10-04"},{"$f":"HD6+7","v":"2027-10-11"},{"$f":"HE6+7","v":"2027-10-18"},{"$f":"HF6+7","v":"2027-10-25"},{"$f":"HG6+7","v":"2027-11-01"},{"$f":"HH6+7","v":"2027-11-08"},{"$f":"HI6+7","v":"2027-11-15"},{"$f":"HJ6+7","v":"2027-11-22"},{"$f":"HK6+7","v":"2027-11-29"},{"$f":"HL6+7","v":"2027-12-06"},{"$f":"HM6+7","v":"2027-12-13"},{"$f":"HN6+7","v":"2027-12-20"},{"$f":"HO6+7","v":"2027-12-27"},{"$f":"HP6+7","v":"2028-01-03"},{"$f":"HQ6+7","v":"2028-01-10"},{"$f":"HR6+7","v":"2028-01-17"},{"$f":"HS6+7","v":"2028-01-24"},{"$f":"HT6+7","v":"2028-01-31"},{"$f":"HU6+7","v":"2028-02-07"},{"$f":"HV6+7","v":"2028-02-14"},{"$f":"HW6+7","v":"2028-02-21"},{"$f":"HX6+7","v":"2028-02-28"},{"$f":"HY6+7","v":"2028-03-06"},{"$f":"HZ6+7","v":"2028-03-13"},{"$f":"IA6+7","v":"2028-03-20"},{"$f":"IB6+7","v":"2028-03-27"},{"$f":"IC6+7","v":"2028-04-03"},{"$f":"ID6+7","v":"2028-04-10"},{"$f":"IE6+7","v":"2028-04-17"},{"$f":"IF6+7","v":"2028-04-24"},{"$f":"IG6+7","v":"2028-05-01"},{"$f":"IH6+7","v":"2028-05-08"},{"$f":"II6+7","v":"2028-05-15"},{"$f":"IJ6+7","v":"2028-05-22"},{"$f":"IK6+7","v":"2028-05-29"},{"$f":"IL6+7","v":"2028-06-05"},{"$f":"IM6+7","v":"2028-06-12"},{"$f":"IN6+7","v":"2028-06-19"},{"$f":"IO6+7","v":"2028-06-26"},{"$f":"IP6+7","v":"2028-07-03"},{"$f":"IQ6+7","v":"2028-07-10"},{"$f":"IR6+7","v":"2028-07-17"},{"$f":"IS6+7","v":"2028-07-24"},{"$f":"IT6+7","v":"2028-07-31"},{"$f":"IU6+7","v":"2028-08-07"},{"$f":"IV6+7","v":"2028-08-14"},{"$f":"IW6+7","v":"2028-08-21"},{"$f":"IX6+7","v":"2028-08-28"},{"$f":"IY6+7","v":"2028-09-04"},{"$f":"IZ6+7","v":"2028-09-11"},{"$f":"JA6+7","v":"2028-09-18"},{"$f":"JB6+7","v":"2028-09-25"},{"$f":"JC6+7","v":"2028-10-02"},{"$f":"JD6+7","v":"2028-10-09"},{"$f":"JE6+7","v":"2028-10-16"},{"$f":"JF6+7","v":"2028-10-23"},{"$f":"JG6+7","v":"2028-10-30"},{"$f":"JH6+7","v":"2028-11-06"},{"$f":"JI6+7","v":"2028-11-13"},{"$f":"JJ6+7","v":"2028-11-20"},{"$f":"JK6+7","v":"2028-11-27"},{"$f":"JL6+7","v":"2028-12-04"},{"$f":"JM6+7","v":"2028-12-11"},{"$f":"JN6+7","v":"2028-12-18"},{"$f":"JO6+7","v":"2028-12-25"},{"$f":"JP6+7","v":"2029-01-01"},{"$f":"JQ6+7","v":"2029-01-08"},{"$f":"JR6+7","v":"2029-01-15"},{"$f":"JS6+7","v":"2029-01-22"},{"$f":"JT6+7","v":"2029-01-29"},{"$f":"JU6+7","v":"2029-02-05"},{"$f":"JV6+7","v":"2029-02-12"},{"$f":"JW6+7","v":"2029-02-19"},{"$f":"JX6+7","v":"2029-02-26"},{"$f":"JY6+7","v":"2029-03-05"},{"$f":"JZ6+7","v":"2029-03-12"},{"$f":"KA6+7","v":"2029-03-19"},{"$f":"KB6+7","v":"2029-03-26"},{"$f":"KC6+7","v":"2029-04-02"},{"$f":"KD6+7","v":"2029-04-09"},{"$f":"KE6+7","v":"2029-04-16"},{"$f":"KF6+7","v":"2029-04-23"},{"$f":"KG6+7","v":"2029-04-30"},{"$f":"KH6+7","v":"2029-05-07"},{"$f":"KI6+7","v":"2029-05-14"},{"$f":"KJ6+7","v":"2029-05-21"},{"$f":"KK6+7","v":"2029-05-28"},{"$f":"KL6+7","v":"2029-06-04"},{"$f":"KM6+7","v":"2029-06-11"},{"$f":"KN6+7","v":"2029-06-18"},{"$f":"KO6+7","v":"2029-06-25"},{"$f":"KP6+7","v":"2029-07-02"},{"$f":"KQ6+7","v":"2029-07-09"},{"$f":"KR6+7","v":"2029-07-16"},{"$f":"KS6+7","v":"2029-07-23"},{"$f":"KT6+7","v":"2029-07-30"},{"$f":"KU6+7","v":"2029-08-06"},{"$f":"KV6+7","v":"2029-08-13"},{"$f":"KW6+7","v":"2029-08-20"},{"$f":"KX6+7","v":"2029-08-27"},{"$f":"KY6+7","v":"2029-09-03"},{"$f":"KZ6+7","v":"2029-09-10"},{"$f":"LA6+7","v":"2029-09-17"},{"$f":"LB6+7","v":"2029-09-24"},{"$f":"LC6+7","v":"2029-10-01"},{"$f":"LD6+7","v":"2029-10-08"},{"$f":"LE6+7","v":"2029-10-15"},{"$f":"LF6+7","v":"2029-10-22"},{"$f":"LG6+7","v":"2029-10-29"},{"$f":"LH6+7","v":"2029-11-05"},{"$f":"LI6+7","v":"2029-11-12"},{"$f":"LJ6+7","v":"2029-11-19"},{"$f":"LK6+7","v":"2029-11-26"},{"$f":"LL6+7","v":"2029-12-03"},{"$f":"LM6+7","v":"2029-12-10"},{"$f":"LN6+7","v":"2029-12-17"},{"$f":"LO6+7","v":"2029-12-24"},{"$f":"LP6+7","v":"2029-12-31"},{"$f":"LQ6+7","v":"2030-01-07"},{"$f":"LR6+7","v":"2030-01-14"},{"$f":"LS6+7","v":"2030-01-21"},{"$f":"LT6+7","v":"2030-01-28"},{"$f":"LU6+7","v":"2030-02-04"},{"$f":"LV6+7","v":"2030-02-11"},{"$f":"LW6+7","v":"2030-02-18"},{"$f":"LX6+7","v":"2030-02-25"},{"$f":"LY6+7","v":"2030-03-04"},{"$f":"LZ6+7","v":"2030-03-11"},{"$f":"MA6+7","v":"2030-03-18"},{"$f":"MB6+7","v":"2030-03-25"},{"$f":"MC6+7","v":"2030-04-01"},{"$f":"MD6+7","v":"2030-04-08"},{"$f":"ME6+7","v":"2030-04-15"},{"$f":"MF6+7","v":"2030-04-22"},{"$f":"MG6+7","v":"2030-04-29"},{"$f":"MH6+7","v":"2030-05-06"},{"$f":"MI6+7","v":"2030-05-13"},{"$f":"MJ6+7","v":"2030-05-20"},{"$f":"MK6+7","v":"2030-05-27"},{"$f":"ML6+7","v":"2030-06-03"},{"$f":"MM6+7","v":"2030-06-10"},{"$f":"MN6+7","v":"2030-06-17"},{"$f":"MO6+7","v":"2030-06-24"},{"$f":"MP6+7","v":"2030-07-01"},{"$f":"MQ6+7","v":"2030-07-08"},{"$f":"MR6+7","v":"2030-07-15"},{"$f":"MS6+7","v":"2030-07-22"},{"$f":"MT6+7","v":"2030-07-29"},{"$f":"MU6+7","v":"2030-08-05"},{"$f":"MV6+7","v":"2030-08-12"},{"$f":"MW6+7","v":"2030-08-19"},{"$f":"MX6+7","v":"2030-08-26"},{"$f":"MY6+7","v":"2030-09-02"},{"$f":"MZ6+7","v":"2030-09-09"},{"$f":"NA6+7","v":"2030-09-16"},{"$f":"NB6+7","v":"2030-09-23"},{"$f":"NC6+7","v":"2030-09-30"},{"$f":"ND6+7","v":"2030-10-07"},{"$f":"NE6+7","v":"2030-10-14"},{"$f":"NF6+7","v":"2030-10-21"},{"$f":"NG6+7","v":"2030-10-28"},{"$f":"NH6+7","v":"2030-11-04"},{"$f":"NI6+7","v":"2030-11-11"},{"$f":"NJ6+7","v":"2030-11-18"},{"$f":"NK6+7","v":"2030-11-25"},{"$f":"NL6+7","v":"2030-12-02"},{"$f":"NM6+7","v":"2030-12-09"},{"$f":"NN6+7","v":"2030-12-16"},{"$f":"NO6+7","v":"2030-12-23"}]
["    Selection.EntireColumn.Hidden = True","Projectnaam","Opdrachtgever","Startdatum (week)","Einddatum (week)","Status","Verantwoordelijke","Uren budget","Uren ingepland ","Kosten","Opmerkingen",null,null,"Startdatum","Einddatum ",{"$f":"WEEKNUM(P6,21)","v":1},2,3,4,5,6,7,8,9,10,11,12,13,14,15,16,17,18,19,20,21,22,23,24,25,26,27,28,29,30,31,32,33,34,35,36,37,38,39,40,41,42,43,44,45,46,47,{"$f":"WEEKNUM(BK6,21)","v":48},49,50,51,52,1,2,3,4,5,6,7,8,9,10,11,12,13,14,15,16,17,18,19,20,21,22,23,24,25,26,27,28,29,30,31,32,33,34,35,36,37,38,39,40,41,42,43,44,45,46,47,48,49,50,51,52,1,2,3,4,5,6,7,{"$f":"WEEKNUM(DW6,21)","v":8},9,10,11,12,13,14,15,16,17,18,19,20,21,22,23,24,25,26,27,28,29,30,31,32,33,34,35,36,37,38,39,40,41,42,43,44,45,46,47,48,49,50,51,52,53,1,2,3,4,5,6,7,8,9,10,11,12,13,14,15,16,17,18,{"$f":"WEEKNUM(GI6,21)","v":19},20,21,22,23,24,25,26,27,28,29,30,31,32,33,34,35,36,37,38,39,40,41,42,43,44,45,46,47,48,49,50,51,52,1,2,3,4,5,6,7,8,9,10,11,12,13,14,15,16,17,18,19,20,21,22,23,24,25,26,27,28,29,30,{"$f":"WEEKNUM(IU6,21)","v":31},32,33,34,35,36,37,38,39,40,41,42,43,44,45,46,47,48,49,50,51,52,1,2,3,4,5,6,7,8,9,10,11,12,13,14,15,16,17,18,19,20,21,22,23,24,25,26,27,28,29,30,31,32,33,34,35,36,37,38,39,40,41,42,{"$f":"WEEKNUM(LG6,21)","v":43},44,45,46,47,48,49,50,51,52,1,2,3,4,5,6,7,8,9,10,11,12,13,14,15,16,17,18,19,20,21,22,23,24,25,26,27,28,29,30,31,32,33,34,35,36,37,38,39,40,41,42,43,44,45,46,47,48,49,50,51,52]
[]
[]
[]
["Projecten.Activate"]
[]
["Projecten.Cells(1, 1).Select"]
["vergrendelen"]
["Application.ScreenUpdating = True"]
["Application.EnableEvents = True"]
[]
["End Sub"]
[]
["Sub knoptonenkolommen()"]
["Application.ScreenUpdating = False"]
["Application.EnableEvents = False"]
["ontgrendelen"]
[]
["    Columns(\"F:K\").Select"]
["    Selection.EntireColumn.Hidden = False"]
[]
[]
[]
["Projecten.Activate"]
[]
["Projecten.Cells(1, 1).Select"]
["vergrendelen"]
["Application.ScreenUpdating = True"]
["Application.EnableEvents = True"]
["End Sub"]

{"sheet":"Acties","index":2,"n_rows":998,"n_cols":21,"rows_kept":998,"cut":false,"hidden":false,"merged":[]}
[]
[]
[null,"Projectnaam","Actie","Startdatum (week)","Einddatum (week)","Status","Verantwoordelijke","Uitvoerende 1","Uren","Uitvoerende 2","Uren","Uitvoerende 3","Uren","Uitvoerende 4","Uren","Uitvoerende 5","Uren","Uren actie","Kosten",null,"Som"]
[null,null,null,null,null,null,null,null,null,null,null,null,null,null,null,null,null,null,null,null,{"$f":"I4+K4+M4+O4+Q4","v":0}]
[null,null,null,null,null,null,null,null,null,null,null,null,null,null,null,null,null,null,null,null,{"$f":"I5+K5+M5+O5+Q5","v":0}]
[null,null,null,null,null,null,null,null,null,null,null,null,null,null,null,null,null,null,null,null,0]
[null,null,null,null,null,null,null,null,null,null,null,null,null,null,null,null,null,null,null,null,0]
[null,null,null,null,null,null,null,null,null,null,null,null,null,null,null,null,null,null,null,null,0]
[null,null,null,null,null,null,null,"",null,null,null,null,null,null,null,null,null,null,null,null,0]
[null,null,null,null,null,null,null,null,null,null,null,null,null,null,null,null,null,null,null,null,0]
[null,null,null,null,null,null,null,null,null,null,null,null,null,null,null,null,null,null,null,null,0]
[null,null,null,null,null,null,null,null,null,null,null,null,null,null,null,null,null,null,null,null,0]
[null,null,null,null,null,null,null,null,null,null,null,null,null,null,null,null,null,null,null,null,0]
[null,null,null,null,null,null,null,null,null,null,null,null,null,null,null,null,null,null,null,null,0]
[null,null,null,null,null,null,null,null,null,null,null,null,null,null,null,null,null,null,null,null,0]
[null,null,null,null,null,null,null,null,null,null,null,null,null,null,null,null,null,null,null,null,0]
[null,null,null,null,null,null,null,null,null,null,null,null,null,null,null,null,null,null,null,null,0]
[null,null,null,null,null,null,null,null,null,null,null,null,null,null,null,null,null,null,null,null,0]
[null,null,null,null,null,null,null,null,null,null,null,null,null,null,null,null,null,null,null,null,0]
[null,null,null,null,null,null,null,null,null,null,null,null,null,null,null,null,null,null,null,null,0]
[null,null,null,null,null,null,null,null,null,null,null,null,null,null,null,null,null,null,null,null,0]
[null,null,null,null,null,null,null,null,null,null,null,null,null,null,null,null,null,null,null,null,0]
[null,null,null,null,null,null,null,null,null,null,null,null,null,null,null,null,null,null,null,null,0]
[null,null,null,null,null,null,null,null,null,null,null,null,null,null,null,null,null,null,null,null,0]
[null,null,null,null,null,null,null,null,null,null,null,null,null,null,null,null,null,null,null,null,0]
[null,null,null,null,null,null,null,null,null,null,null,null,null,null,null,null,null,null,null,null,0]
[null,null,null,null,null,null,null,null,null,null,null,null,null,null,null,null,null,null,null,null,0]
[null,null,null,null,null,null,null,null,null,null,null,null,null,null,null,null,null,null,null,null,0]
[null,null,null,null,null,null,null,null,null,null,null,null,null,null,null,null,null,null,null,null,0]
[null,null,null,null,null,null,null,null,null,null,null,null,null,null,null,null,null,null,null,null,0]
[null,null,null,null,null,null,null,null,null,null,null,null,null,null,null,null,null,null,null,null,0]
[null,null,null,null,null,null,null,null,null,null,null,null,null,null,null,null,null,null,null,null,0]
[null,null,null,null,null,null,null,null,null,null,null,null,null,null,null,null,null,null,null,null,0]
[null,null,null,null,null,null,null,null,null,null,null,null,null,null,null,null,null,null,null,null,0]
[null,null,null,null,null,null,null,null,null,null,null,null,null,null,null,null,null,null,null,null,0]
[null,null,null,null,null,null,null,null,null,null,null,null,null,null,null,null,null,null,null,null,0]
[null,null,null,null,null,null,null,null,null,null,null,null,null,null,null,null,null,null,null,null,0]
[null,null,null,null,null,null,null,null,null,null,null,null,null,null,null,null,null,null,null,null,0]
[null,null,null,null,null,null,null,null,null,null,null,null,null,null,null,null,null,null,null,null,0]
[null,null,null,null,null,null,null,null,null,null,null,null,null,null,null,null,null,null,null,null,0]
[null,null,null,null,null,null,null,null,null,null,null,null,null,null,null,null,null,null,null,null,0]
[null,null,null,null,null,null,null,null,null,null,null,null,null,null,null,null,null,null,null,null,0]
[null,null,null,null,null,null,null,null,null,null,null,null,null,null,null,null,null,null,null,null,0]
[null,null,null,null,null,null,null,null,null,null,null,null,null,null,null,null,null,null,null,null,0]
[null,null,null,null,null,null,null,null,null,null,null,null,null,null,null,null,null,null,null,null,0]
[null,null,null,null,null,null,null,null,null,null,null,null,null,null,null,null,null,null,null,null,0]
[null,null,null,null,null,null,null,null,null,null,null,null,null,null,null,null,null,null,null,null,0]
[null,null,null,null,null,null,null,null,null,null,null,null,null,null,null,null,null,null,null,null,0]
[null,null,null,null,null,null,null,null,null,null,null,null,null,null,null,null,null,null,null,null,0]
[null,null,null,null,null,null,null,null,null,null,null,null,null,null,null,null,null,null,null,null,0]
[null,null,null,null,null,null,null,null,null,null,null,null,null,null,null,null,null,null,null,null,0]
[null,null,null,null,null,null,null,null,null,null,null,null,null,null,null,null,null,null,null,null,0]
[null,null,null,null,null,null,null,null,null,null,null,null,null,null,null,null,null,null,null,null,0]
[null,null,null,null,null,null,null,null,null,null,null,null,null,null,null,null,null,null,null,null,0]
[null,null,null,null,null,null,null,null,null,null,null,null,null,null,null,null,null,null,null,null,0]
[null,null,null,null,null,null,null,null,null,null,null,null,null,null,null,null,null,null,null,null,0]
[null,null,null,null,null,null,null,null,null,null,null,null,null,null,null,null,null,null,null,null,0]
[null,null,null,null,null,null,null,null,null,null,null,null,null,null,null,null,null,null,null,null,0]
[null,null,null,null,null,null,null,null,null,null,null,null,null,null,null,null,null,null,null,null,0]
[null,null,null,null,null,null,null,null,null,null,null,null,null,null,null,null,null,null,null,null,0]
[null,null,null,null,null,null,null,null,null,null,null,null,null,null,null,null,null,null,null,null,0]
[null,null,null,null,null,null,null,null,null,null,null,null,null,null,null,null,null,null,null,null,0]
[null,null,null,null,null,null,null,null,null,null,null,null,null,null,null,null,null,null,null,null,0]
[null,null,null,null,null,null,null,null,null,null,null,null,null,null,null,null,null,null,null,null,0]
[null,null,null,null,null,null,null,null,null,null,null,null,null,null,null,null,null,null,null,null,0]
[null,null,null,null,null,null,null,null,null,null,null,null,null,null,null,null,null,null,null,null,0]
[null,null,null,null,null,null,null,null,null,null,null,null,null,null,null,null,null,null,null,null,0]
[null,null,null,null,null,null,null,null,null,null,null,null,null,null,null,null,null,null,null,null,0]
[null,null,null,null,null,null,null,null,null,null,null,null,null,null,null,null,null,null,null,null,{"$f":"I69+K69+M69+O69+Q69","v":0}]
[null,null,null,null,null,null,null,null,null,null,null,null,null,null,null,null,null,null,null,null,0]
[null,null,null,null,null,null,null,null,null,null,null,null,null,null,null,null,null,null,null,null,0]
[null,null,null,null,null,null,null,null,null,null,null,null,null,null,null,null,null,null,null,null,0]
[null,null,null,null,null,null,null,null,null,null,null,null,null,null,null,null,null,null,null,null,0]
[null,null,null,null,null,null,null,null,null,null,null,null,null,null,null,null,null,null,null,null,0]
[null,null,null,null,null,null,null,null,null,null,null,null,null,null,null,null,null,null,null,null,0]
[null,null,null,null,null,null,null,null,null,null,null,null,null,null,null,null,null,null,null,null,0]
[null,null,null,null,null,null,null,null,null,null,null,null,null,null,null,null,null,null,null,null,0]
[null,null,null,null,null,null,null,null,null,null,null,null,null,null,null,null,null,null,null,null,0]
[null,null,null,null,null,null,null,null,null,null,null,null,null,null,null,null,null,null,null,null,0]
[null,null,null,null,null,null,null,null,null,null,null,null,null,null,null,null,null,null,null,null,0]
[null,null,null,null,null,null,null,null,null,null,null,null,null,null,null,null,null,null,null,null,0]
[null,null,null,null,null,null,null,null,null,null,null,null,null,null,null,null,null,null,null,null,0]
[null,null,null,null,null,null,null,null,null,null,null,null,null,null,null,null,null,null,null,null,0]
[null,null,null,null,null,null,null,null,null,null,null,null,null,null,null,null,null,null,null,null,0]
[null,null,null,null,null,null,null,null,null,null,null,null,null,null,null,null,null,null,null,null,0]
[null,null,null,null,null,null,null,null,null,null,null,null,null,null,null,null,null,null,null,null,0]
[null,null,null,null,null,null,null,null,null,null,null,null,null,null,null,null,null,null,null,null,0]
[null,null,null,null,null,null,null,null,null,null,null,null,null,null,null,null,null,null,null,null,0]
[null,null,null,null,null,null,null,null,null,null,null,null,null,null,null,null,null,null,null,null,0]
[null,null,null,null,null,null,null,null,null,null,null,null,null,null,null,null,null,null,null,null,0]
[null,null,null,null,null,null,null,null,null,null,null,null,null,null,null,null,null,null,null,null,0]
[null,null,null,null,null,null,null,null,null,null,null,null,null,null,null,null,null,null,null,null,0]
[null,null,null,null,null,null,null,null,null,null,null,null,null,null,null,null,null,null,null,null,0]
[null,null,null,null,null,null,null,null,null,null,null,null,null,null,null,null,null,null,null,null,0]
[null,null,null,null,null,null,null,null,null,null,null,null,null,null,null,null,null,null,null,null,0]
[null,null,null,null,null,null,null,null,null,null,null,null,null,null,null,null,null,null,null,null,0]
[null,null,null,null,null,null,null,null,null,null,null,null,null,null,null,null,null,null,null,null,0]
[null,null,null,null,null,null,null,null,null,null,null,null,null,null,null,null,null,null,null,null,0]
[null,null,null,null,null,null,null,null,null,null,null,null,null,null,null,null,null,null,null,null,0]
[null,null,null,null,null,null,null,null,null,null,null,null,null,null,null,null,null,null,null,null,0]
[null,null,null,null,null,null,null,null,null,null,null,null,null,null,null,null,null,null,null,null,0]
[null,null,null,null,null,null,null,null,null,null,null,null,null,null,null,null,null,null,null,null,0]
[null,null,null,null,null,null,null,null,null,null,null,null,null,null,null,null,null,null,null,null,0]
[null,null,null,null,null,null,null,null,null,null,null,null,null,null,null,null,null,null,null,null,0]
[null,null,null,null,null,null,null,null,null,null,null,null,null,null,null,null,null,null,null,null,0]
[null,null,null,null,null,null,null,null,null,null,null,null,null,null,null,null,null,null,null,null,0]
[null,null,null,null,null,null,null,null,null,null,null,null,null,null,null,null,null,null,null,null,0]
[null,null,null,null,null,null,null,null,null,null,null,null,null,null,null,null,null,null,null,null,0]
[null,null,null,null,null,null,null,null,null,null,null,null,null,null,null,null,null,null,null,null,0]
[null,null,null,null,null,null,null,null,null,null,null,null,null,null,null,null,null,null,null,null,0]
[null,null,null,null,null,null,null,null,null,null,null,null,null,null,null,null,null,null,null,null,0]
[null,null,null,null,null,null,null,null,null,null,null,null,null,null,null,null,null,null,null,null,0]
[null,null,null,null,null,null,null,null,null,null,null,null,null,null,null,null,null,null,null,null,0]
[null,null,null,null,null,null,null,null,null,null,null,null,null,null,null,null,null,null,null,null,0]
[null,null,null,null,null,null,null,null,null,null,null,null,null,null,null,null,null,null,null,null,0]
[null,null,null,null,null,null,null,null,null,null,null,null,null,null,null,null,null,null,null,null,0]
[null,null,null,null,null,null,null,null,null,null,null,null,null,null,null,null,null,null,null,null,0]
[null,null,null,null,null,null,null,null,null,null,null,null,null,null,null,null,null,null,null,null,0]
[null,null,null,null,null,null,null,null,null,null,null,null,null,null,null,null,null,null,null,null,0]
[null,null,null,null,null,null,null,null,null,null,null,null,null,null,null,null,null,null,null,null,0]
[null,null,null,null,null,null,null,null,null,null,null,null,null,null,null,null,null,null,null,null,0]
[null,null,null,null,null,null,null,null,null,null,null,null,null,null,null,null,null,null,null,null,0]
[null,null,null,null,null,null,null,null,null,null,null,null,null,null,null,null,null,null,null,null,0]
[null,null,null,null,null,null,null,null,null,null,null,null,null,null,null,null,null,null,null,null,0]
[null,null,null,null,null,null,null,null,null,null,null,null,null,null,null,null,null,null,null,null,0]
[null,null,null,null,null,null,null,null,null,null,null,null,null,null,null,null,null,null,null,null,0]
[null,null,null,null,null,null,null,null,null,null,null,null,null,null,null,null,null,null,null,null,0]
[null,null,null,null,null,null,null,null,null,null,null,null,null,null,null,null,null,null,null,null,0]
[null,null,null,null,null,null,null,null,null,null,null,null,null,null,null,null,null,null,null,null,0]
[null,null,null,null,null,null,null,null,null,null,null,null,null,null,null,null,null,null,null,null,0]
[null,null,null,null,null,null,null,null,null,null,null,null,null,null,null,null,null,null,null,null,0]
[null,null,null,null,null,null,null,null,null,null,null,null,null,null,null,null,null,null,null,null,0]
[null,null,null,null,null,null,null,null,null,null,null,null,null,null,null,null,null,null,null,null,{"$f":"I133+K133+M133+O133+Q133","v":0}]
[null,null,null,null,null,null,null,null,null,null,null,null,null,null,null,null,null,null,null,null,0]
[null,null,null,null,null,null,null,null,null,null,null,null,null,null,null,null,null,null,null,null,0]
[null,null,null,null,null,null,null,null,null,null,null,null,null,null,null,null,null,null,null,null,0]
[null,null,null,null,null,null,null,null,null,null,null,null,null,null,null,null,null,null,null,null,0]
[null,null,null,null,null,null,null,null,null,null,null,null,null,null,null,null,null,null,null,null,0]
[null,null,null,null,null,null,null,null,null,null,null,null,null,null,null,null,null,null,null,null,0]
[null,null,null,null,null,null,null,null,null,null,null,null,null,null,null,null,null,null,null,null,0]
[null,null,null,null,null,null,null,null,null,null,null,null,null,null,null,null,null,null,null,null,0]
[null,null,null,null,null,null,null,null,null,null,null,null,null,null,null,null,null,null,null,null,0]
[null,null,null,null,null,null,null,null,null,null,null,null,null,null,null,null,null,null,null,null,0]
[null,null,null,null,null,null,null,null,null,null,null,null,null,null,null,null,null,null,null,null,0]
[null,null,null,null,null,null,null,null,null,null,null,null,null,null,null,null,null,null,null,null,0]
[null,null,null,null,null,null,null,null,null,null,null,null,null,null,null,null,null,null,null,null,0]
[null,null,null,null,null,null,null,null,null,null,null,null,null,null,null,null,null,null,null,null,0]
[null,null,null,null,null,null,null,null,null,null,null,null,null,null,null,null,null,null,null,null,0]
[null,null,null,null,null,null,null,null,null,null,null,null,null,null,null,null,null,null,null,null,0]
[null,null,null,null,null,null,null,null,null,null,null,null,null,null,null,null,null,null,null,null,0]
[null,null,null,null,null,null,null,null,null,null,null,null,null,null,null,null,null,null,null,null,0]
[null,null,null,null,null,null,null,null,null,null,null,null,null,null,null,null,null,null,null,null,0]
[null,null,null,null,null,null,null,null,null,null,null,null,null,null,null,null,null,null,null,null,0]
[null,null,null,null,null,null,null,null,null,null,null,null,null,null,null,null,null,null,null,null,0]
[null,null,null,null,null,null,null,null,null,null,null,null,null,null,null,null,null,null,null,null,0]
[null,null,null,null,null,null,null,null,null,null,null,null,null,null,null,null,null,null,null,null,0]
[null,null,null,null,null,null,null,null,null,null,null,null,null,null,null,null,null,null,null,null,0]
[null,null,null,null,null,null,null,null,null,null,null,null,null,null,null,null,null,null,null,null,0]
[null,null,null,null,null,null,null,null,null,null,null,null,null,null,null,null,null,null,null,null,0]
[null,null,null,null,null,null,null,null,null,null,null,null,null,null,null,null,null,null,null,null,0]
[null,null,null,null,null,null,null,null,null,null,null,null,null,null,null,null,null,null,null,null,0]
[null,null,null,null,null,null,null,null,null,null,null,null,null,null,null,null,null,null,null,null,0]
[null,null,null,null,null,null,null,null,null,null,null,null,null,null,null,null,null,null,null,null,0]
[null,null,null,null,null,null,null,null,null,null,null,null,null,null,null,null,null,null,null,null,0]
[null,null,null,null,null,null,null,null,null,null,null,null,null,null,null,null,null,null,null,null,0]
[null,null,null,null,null,null,null,null,null,null,null,null,null,null,null,null,null,null,null,null,0]
[null,null,null,null,null,null,null,null,null,null,null,null,null,null,null,null,null,null,null,null,0]
[null,null,null,null,null,null,null,null,null,null,null,null,null,null,null,null,null,null,null,null,0]
[null,null,null,null,null,null,null,null,null,null,null,null,null,null,null,null,null,null,null,null,0]
[null,null,null,null,null,null,null,null,null,null,null,null,null,null,null,null,null,null,null,null,0]
[null,null,null,null,null,null,null,null,null,null,null,null,null,null,null,null,null,null,null,null,0]
[null,null,null,null,null,null,null,null,null,null,null,null,null,null,null,null,null,null,null,null,0]
[null,null,null,null,null,null,null,null,null,null,null,null,null,null,null,null,null,null,null,null,0]
[null,null,null,null,null,null,null,null,null,null,null,null,null,null,null,null,null,null,null,null,0]
[null,null,null,null,null,null,null,null,null,null,null,null,null,null,null,null,null,null,null,null,0]
[null,null,null,null,null,null,null,null,null,null,null,null,null,null,null,null,null,null,null,null,0]
[null,null,null,null,null,null,null,null,null,null,null,null,null,null,null,null,null,null,null,null,0]
[null,null,null,null,null,null,null,null,null,null,null,null,null,null,null,null,null,null,null,null,0]
[null,null,null,null,null,null,null,null,null,null,null,null,null,null,null,null,null,null,null,null,0]
[null,null,null,null,null,null,null,null,null,null,null,null,null,null,null,null,null,null,null,null,0]
[null,null,null,null,null,null,null,null,null,null,null,null,null,null,null,null,null,null,null,null,0]
[null,null,null,null,null,null,null,null,null,null,null,null,null,null,null,null,null,null,null,null,0]
[null,null,null,null,null,null,null,null,null,null,null,null,null,null,null,null,null,null,null,null,0]
[null,null,null,null,null,null,null,null,null,null,null,null,null,null,null,null,null,null,null,null,0]
[null,null,null,null,null,null,null,null,null,null,null,null,null,null,null,null,null,null,null,null,0]
[null,null,null,null,null,null,null,null,null,null,null,null,null,null,null,null,null,null,null,null,0]
[null,null,null,null,null,null,null,null,null,null,null,null,null,null,null,null,null,null,null,null,0]
[null,null,null,null,null,null,null,null,null,null,null,null,null,null,null,null,null,null,null,null,0]
[null,null,null,null,null,null,null,null,null,null,null,null,null,null,null,null,null,null,null,null,0]
[null,null,null,null,null,null,null,null,null,null,null,null,null,null,null,null,null,null,null,null,0]
[null,null,null,null,null,null,null,null,null,null,null,null,null,null,null,null,null,null,null,null,0]
[null,null,null,null,null,null,null,null,null,null,null,null,null,null,null,null,null,null,null,null,0]
[null,null,null,null,null,null,null,null,null,null,null,null,null,null,null,null,null,null,null,null,0]
[null,null,null,null,null,null,null,null,null,null,null,null,null,null,null,null,null,null,null,null,0]
[null,null,null,null,null,null,null,null,null,null,null,null,null,null,null,null,null,null,null,null,0]
[null,null,null,null,null,null,null,null,null,null,null,null,null,null,null,null,null,null,null,null,0]
[null,null,null,null,null,null,null,null,null,null,null,null,null,null,null,null,null,null,null,null,{"$f":"I197+K197+M197+O197+Q197","v":0}]
[null,null,null,null,null,null,null,null,null,null,null,null,null,null,null,null,null,null,null,null,0]
[null,null,null,null,null,null,null,null,null,null,null,null,null,null,null,null,null,null,null,null,0]
[null,null,null,null,null,null,null,null,null,null,null,null,null,null,null,null,null,null,null,null,0]
[null,null,null,null,null,null,null,null,null,null,null,null,null,null,null,null,null,null,null,null,0]
[null,null,null,null,null,null,null,null,null,null,null,null,null,null,null,null,null,null,null,null,0]
[null,null,null,null,null,null,null,null,null,null,null,null,null,null,null,null,null,null,null,null,0]
[null,null,null,null,null,null,null,null,null,null,null,null,null,null,null,null,null,null,null,null,0]
[null,null,null,null,null,null,null,null,null,null,null,null,null,null,null,null,null,null,null,null,0]
[null,null,null,null,null,null,null,null,null,null,null,null,null,null,null,null,null,null,null,null,0]
[null,null,null,null,null,null,null,null,null,null,null,null,null,null,null,null,null,null,null,null,0]
[null,null,null,null,null,null,null,null,null,null,null,null,null,null,null,null,null,null,null,null,0]
[null,null,null,null,null,null,null,null,null,null,null,null,null,null,null,null,null,null,null,null,0]
[null,null,null,null,null,null,null,null,null,null,null,null,null,null,null,null,null,null,null,null,0]
[null,null,null,null,null,null,null,null,null,null,null,null,null,null,null,null,null,null,null,null,0]
[null,null,null,null,null,null,null,null,null,null,null,null,null,null,null,null,null,null,null,null,0]
[null,null,null,null,null,null,null,null,null,null,null,null,null,null,null,null,null,null,null,null,0]
[null,null,null,null,null,null,null,null,null,null,null,null,null,null,null,null,null,null,null,null,0]
[null,null,null,null,null,null,null,null,null,null,null,null,null,null,null,null,null,null,null,null,0]
[null,null,null,null,null,null,null,null,null,null,null,null,null,null,null,null,null,null,null,null,0]
[null,null,null,null,null,null,null,null,null,null,null,null,null,null,null,null,null,null,null,null,0]
[null,null,null,null,null,null,null,null,null,null,null,null,null,null,null,null,null,null,null,null,0]
[null,null,null,null,null,null,null,null,null,null,null,null,null,null,null,null,null,null,null,null,0]
[null,null,null,null,null,null,null,null,null,null,null,null,null,null,null,null,null,null,null,null,0]
[null,null,null,null,null,null,null,null,null,null,null,null,null,null,null,null,null,null,null,null,0]
[null,null,null,null,null,null,null,null,null,null,null,null,null,null,null,null,null,null,null,null,0]
[null,null,null,null,null,null,null,null,null,null,null,null,null,null,null,null,null,null,null,null,0]
[null,null,null,null,null,null,null,null,null,null,null,null,null,null,null,null,null,null,null,null,0]
[null,null,null,null,null,null,null,null,null,null,null,null,null,null,null,null,null,null,null,null,0]
[null,null,null,null,null,null,null,null,null,null,null,null,null,null,null,null,null,null,null,null,0]
[null,null,null,null,null,null,null,null,null,null,null,null,null,null,null,null,null,null,null,null,0]
[null,null,null,null,null,null,null,null,null,null,null,null,null,null,null,null,null,null,null,null,0]
[null,null,null,null,null,null,null,null,null,null,null,null,null,null,null,null,null,null,null,null,0]
[null,null,null,null,null,null,null,null,null,null,null,null,null,null,null,null,null,null,null,null,0]
[null,null,null,null,null,null,null,null,null,null,null,null,null,null,null,null,null,null,null,null,0]
[null,null,null,null,null,null,null,null,null,null,null,null,null,null,null,null,null,null,null,null,0]
[null,null,null,null,null,null,null,null,null,null,null,null,null,null,null,null,null,null,null,null,0]
[null,null,null,null,null,null,null,null,null,null,null,null,null,null,null,null,null,null,null,null,0]
[null,null,null,null,null,null,null,null,null,null,null,null,null,null,null,null,null,null,null,null,0]
[null,null,null,null,null,null,null,null,null,null,null,null,null,null,null,null,null,null,null,null,0]
[null,null,null,null,null,null,null,null,null,null,null,null,null,null,null,null,null,null,null,null,0]
[null,null,null,null,null,null,null,null,null,null,null,null,null,null,null,null,null,null,null,null,0]
[null,null,null,null,null,null,null,null,null,null,null,null,null,null,null,null,null,null,null,null,0]
[null,null,null,null,null,null,null,null,null,null,null,null,null,null,null,null,null,null,null,null,0]
[null,null,null,null,null,null,null,null,null,null,null,null,null,null,null,null,null,null,null,null,0]
[null,null,null,null,null,null,null,null,null,null,null,null,null,null,null,null,null,null,null,null,0]
[null,null,null,null,null,null,null,null,null,null,null,null,null,null,null,null,null,null,null,null,0]
[null,null,null,null,null,null,null,null,null,null,null,null,null,null,null,null,null,null,null,null,0]
[null,null,null,null,null,null,null,null,null,null,null,null,null,null,null,null,null,null,null,null,0]
[null,null,null,null,null,null,null,null,null,null,null,null,null,null,null,null,null,null,null,null,0]
[null,null,null,null,null,null,null,null,null,null,null,null,null,null,null,null,null,null,null,null,0]
[null,null,null,null,null,null,null,null,null,null,null,null,null,null,null,null,null,null,null,null,0]
[null,null,null,null,null,null,null,null,null,null,null,null,null,null,null,null,null,null,null,null,0]
[null,null,null,null,null,null,null,null,null,null,null,null,null,null,null,null,null,null,null,null,0]
[null,null,null,null,null,null,null,null,null,null,null,null,null,null,null,null,null,null,null,null,0]
[null,null,null,null,null,null,null,null,null,null,null,null,null,null,null,null,null,null,null,null,0]
[null,null,null,null,null,null,null,null,null,null,null,null,null,null,null,null,null,null,null,null,0]
[null,null,null,null,null,null,null,null,null,null,null,null,null,null,null,null,null,null,null,null,0]
[null,null,null,null,null,null,null,null,null,null,null,null,null,null,null,null,null,null,null,null,0]
[null,null,null,null,null,null,null,null,null,null,null,null,null,null,null,null,null,null,null,null,0]
[null,null,null,null,null,null,null,null,null,null,null,null,null,null,null,null,null,null,null,null,0]
[null,null,null,null,null,null,null,null,null,null,null,null,null,null,null,null,null,null,null,null,0]
[null,null,null,null,null,null,null,null,null,null,null,null,null,null,null,null,null,null,null,null,0]
[null,null,null,null,null,null,null,null,null,null,null,null,null,null,null,null,null,null,null,null,0]
[null,null,null,null,null,null,null,null,null,null,null,null,null,null,null,null,null,null,null,null,{"$f":"I261+K261+M261+O261+Q261","v":0}]
[null,null,null,null,null,null,null,null,null,null,null,null,null,null,null,null,null,null,null,null,0]
[null,null,null,null,null,null,null,null,null,null,null,null,null,null,null,null,null,null,null,null,0]
[null,null,null,null,null,null,null,null,null,null,null,null,null,null,null,null,null,null,null,null,0]
[null,null,null,null,null,null,null,null,null,null,null,null,null,null,null,null,null,null,null,null,0]
[null,null,null,null,null,null,null,null,null,null,null,null,null,null,null,null,null,null,null,null,0]
[null,null,null,null,null,null,null,null,null,null,null,null,null,null,null,null,null,null,null,null,0]
[null,null,null,null,null,null,null,null,null,null,null,null,null,null,null,null,null,null,null,null,0]
[null,null,null,null,null,null,null,null,null,null,null,null,null,null,null,null,null,null,null,null,0]
[null,null,null,null,null,null,null,null,null,null,null,null,null,null,null,null,null,null,null,null,0]
[null,null,null,null,null,null,null,null,null,null,null,null,null,null,null,null,null,null,null,null,0]
[null,null,null,null,null,null,null,null,null,null,null,null,null,null,null,null,null,null,null,null,0]
[null,null,null,null,null,null,null,null,null,null,null,null,null,null,null,null,null,null,null,null,0]
[null,null,null,null,null,null,null,null,null,null,null,null,null,null,null,null,null,null,null,null,0]
[null,null,null,null,null,null,null,null,null,null,null,null,null,null,null,null,null,null,null,null,0]
[null,null,null,null,null,null,null,null,null,null,null,null,null,null,null,null,null,null,null,null,0]
[null,null,null,null,null,null,null,null,null,null,null,null,null,null,null,null,null,null,null,null,0]
[null,null,null,null,null,null,null,null,null,null,null,null,null,null,null,null,null,null,null,null,0]
[null,null,null,null,null,null,null,null,null,null,null,null,null,null,null,null,null,null,null,null,0]
[null,null,null,null,null,null,null,null,null,null,null,null,null,null,null,null,null,null,null,null,0]
[null,null,null,null,null,null,null,null,null,null,null,null,null,null,null,null,null,null,null,null,0]
[null,null,null,null,null,null,null,null,null,null,null,null,null,null,null,null,null,null,null,null,0]
[null,null,null,null,null,null,null,null,null,null,null,null,null,null,null,null,null,null,null,null,0]
[null,null,null,null,null,null,null,null,null,null,null,null,null,null,null,null,null,null,null,null,0]
[null,null,null,null,null,null,null,null,null,null,null,null,null,null,null,null,null,null,null,null,0]
[null,null,null,null,null,null,null,null,null,null,null,null,null,null,null,null,null,null,null,null,0]
[null,null,null,null,null,null,null,null,null,null,null,null,null,null,null,null,null,null,null,null,0]
[null,null,null,null,null,null,null,null,null,null,null,null,null,null,null,null,null,null,null,null,0]
[null,null,null,null,null,null,null,null,null,null,null,null,null,null,null,null,null,null,null,null,0]
[null,null,null,null,null,null,null,null,null,null,null,null,null,null,null,null,null,null,null,null,0]
[null,null,null,null,null,null,null,null,null,null,null,null,null,null,null,null,null,null,null,null,0]
[null,null,null,null,null,null,null,null,null,null,null,null,null,null,null,null,null,null,null,null,0]
[null,null,null,null,null,null,null,null,null,null,null,null,null,null,null,null,null,null,null,null,0]
[null,null,null,null,null,null,null,null,null,null,null,null,null,null,null,null,null,null,null,null,0]
[null,null,null,null,null,null,null,null,null,null,null,null,null,null,null,null,null,null,null,null,0]
[null,null,null,null,null,null,null,null,null,null,null,null,null,null,null,null,null,null,null,null,0]
[null,null,null,null,null,null,null,null,null,null,null,null,null,null,null,null,null,null,null,null,0]
[null,null,null,null,null,null,null,null,null,null,null,null,null,null,null,null,null,null,null,null,0]
[null,null,null,null,null,null,null,null,null,null,null,null,null,null,null,null,null,null,null,null,0]
[null,null,null,null,null,null,null,null,null,null,null,null,null,null,null,null,null,null,null,null,0]
[null,null,null,null,null,null,null,null,null,null,null,null,null,null,null,null,null,null,null,null,0]
[null,null,null,null,null,null,null,null,null,null,null,null,null,null,null,null,null,null,null,null,0]
[null,null,null,null,null,null,null,null,null,null,null,null,null,null,null,null,null,null,null,null,0]
[null,null,null,null,null,null,null,null,null,null,null,null,null,null,null,null,null,null,null,null,0]
[null,null,null,null,null,null,null,null,null,null,null,null,null,null,null,null,null,null,null,null,0]
[null,null,null,null,null,null,null,null,null,null,null,null,null,null,null,null,null,null,null,null,0]
[null,null,null,null,null,null,null,null,null,null,null,null,null,null,null,null,null,null,null,null,0]
[null,null,null,null,null,null,null,null,null,null,null,null,null,null,null,null,null,null,null,null,0]
[null,null,null,null,null,null,null,null,null,null,null,null,null,null,null,null,null,null,null,null,0]
[null,null,null,null,null,null,null,null,null,null,null,null,null,null,null,null,null,null,null,null,0]
[null,null,null,null,null,null,null,null,null,null,null,null,null,null,null,null,null,null,null,null,0]
[null,null,null,null,null,null,null,null,null,null,null,null,null,null,null,null,null,null,null,null,0]
[null,null,null,null,null,null,null,null,null,null,null,null,null,null,null,null,null,null,null,null,0]
[null,null,null,null,null,null,null,null,null,null,null,null,null,null,null,null,null,null,null,null,0]
[null,null,null,null,null,null,null,null,null,null,null,null,null,null,null,null,null,null,null,null,0]
[null,null,null,null,null,null,null,null,null,null,null,null,null,null,null,null,null,null,null,null,0]
[null,null,null,null,null,null,null,null,null,null,null,null,null,null,null,null,null,null,null,null,0]
[null,null,null,null,null,null,null,null,null,null,null,null,null,null,null,null,null,null,null,null,0]
[null,null,null,null,null,null,null,null,null,null,null,null,null,null,null,null,null,null,null,null,0]
[null,null,null,null,null,null,null,null,null,null,null,null,null,null,null,null,null,null,null,null,0]
[null,null,null,null,null,null,null,null,null,null,null,null,null,null,null,null,null,null,null,null,0]
[null,null,null,null,null,null,null,null,null,null,null,null,null,null,null,null,null,null,null,null,0]
[null,null,null,null,null,null,null,null,null,null,null,null,null,null,null,null,null,null,null,null,0]
[null,null,null,null,null,null,null,null,null,null,null,null,null,null,null,null,null,null,null,null,0]
[null,null,null,null,null,null,null,null,null,null,null,null,null,null,null,null,null,null,null,null,{"$f":"I325+K325+M325+O325+Q325","v":0}]
[null,null,null,null,null,null,null,null,null,null,null,null,null,null,null,null,null,null,null,null,0]
[null,null,null,null,null,null,null,null,null,null,null,null,null,null,null,null,null,null,null,null,0]
[null,null,null,null,null,null,null,null,null,null,null,null,null,null,null,null,null,null,null,null,0]
[null,null,null,null,null,null,null,null,null,null,null,null,null,null,null,null,null,null,null,null,0]
[null,null,null,null,null,null,null,null,null,null,null,null,null,null,null,null,null,null,null,null,0]
[null,null,null,null,null,null,null,null,null,null,null,null,null,null,null,null,null,null,null,null,0]
[null,null,null,null,null,null,null,null,null,null,null,null,null,null,null,null,null,null,null,null,0]
[null,null,null,null,null,null,null,null,null,null,null,null,null,null,null,null,null,null,null,null,0]
[null,null,null,null,null,null,null,null,null,null,null,null,null,null,null,null,null,null,null,null,0]
[null,null,null,null,null,null,null,null,null,null,null,null,null,null,null,null,null,null,null,null,0]
[null,null,null,null,null,null,null,null,null,null,null,null,null,null,null,null,null,null,null,null,0]
[null,null,null,null,null,null,null,null,null,null,null,null,null,null,null,null,null,null,null,null,0]
[null,null,null,null,null,null,null,null,null,null,null,null,null,null,null,null,null,null,null,null,0]
[null,null,null,null,null,null,null,null,null,null,null,null,null,null,null,null,null,null,null,null,0]
[null,null,null,null,null,null,null,null,null,null,null,null,null,null,null,null,null,null,null,null,0]
[null,null,null,null,null,null,null,null,null,null,null,null,null,null,null,null,null,null,null,null,0]
[null,null,null,null,null,null,null,null,null,null,null,null,null,null,null,null,null,null,null,null,0]
[null,null,null,null,null,null,null,null,null,null,null,null,null,null,null,null,null,null,null,null,0]
[null,null,null,null,null,null,null,null,null,null,null,null,null,null,null,null,null,null,null,null,0]
[null,null,null,null,null,null,null,null,null,null,null,null,null,null,null,null,null,null,null,null,0]
[null,null,null,null,null,null,null,null,null,null,null,null,null,null,null,null,null,null,null,null,0]
[null,null,null,null,null,null,null,null,null,null,null,null,null,null,null,null,null,null,null,null,0]
[null,null,null,null,null,null,null,null,null,null,null,null,null,null,null,null,null,null,null,null,0]
[null,null,null,null,null,null,null,null,null,null,null,null,null,null,null,null,null,null,null,null,0]
[null,null,null,null,null,null,null,null,null,null,null,null,null,null,null,null,null,null,null,null,0]
[null,null,null,null,null,null,null,null,null,null,null,null,null,null,null,null,null,null,null,null,0]
[null,null,null,null,null,null,null,null,null,null,null,null,null,null,null,null,null,null,null,null,0]
[null,null,null,null,null,null,null,null,null,null,null,null,null,null,null,null,null,null,null,null,0]
[null,null,null,null,null,null,null,null,null,null,null,null,null,null,null,null,null,null,null,null,0]
[null,null,null,null,null,null,null,null,null,null,null,null,null,null,null,null,null,null,null,null,0]
[null,null,null,null,null,null,null,null,null,null,null,null,null,null,null,null,null,null,null,null,0]
[null,null,null,null,null,null,null,null,null,null,null,null,null,null,null,null,null,null,null,null,0]
[null,null,null,null,null,null,null,null,null,null,null,null,null,null,null,null,null,null,null,null,0]
[null,null,null,null,null,null,null,null,null,null,null,null,null,null,null,null,null,null,null,null,0]
[null,null,null,null,null,null,null,null,null,null,null,null,null,null,null,null,null,null,null,null,0]
[null,null,null,null,null,null,null,null,null,null,null,null,null,null,null,null,null,null,null,null,0]
[null,null,null,null,null,null,null,null,null,null,null,null,null,null,null,null,null,null,null,null,0]
[null,null,null,null,null,null,null,null,null,null,null,null,null,null,null,null,null,null,null,null,0]
[null,null,null,null,null,null,null,null,null,null,null,null,null,null,null,null,null,null,null,null,0]
[null,null,null,null,null,null,null,null,null,null,null,null,null,null,null,null,null,null,null,null,0]
[null,null,null,null,null,null,null,null,null,null,null,null,null,null,null,null,null,null,null,null,0]
[null,null,null,null,null,null,null,null,null,null,null,null,null,null,null,null,null,null,null,null,0]
[null,null,null,null,null,null,null,null,null,null,null,null,null,null,null,null,null,null,null,null,0]
[null,null,null,null,null,null,null,null,null,null,null,null,null,null,null,null,null,null,null,null,0]
[null,null,null,null,null,null,null,null,null,null,null,null,null,null,null,null,null,null,null,null,0]
[null,null,null,null,null,null,null,null,null,null,null,null,null,null,null,null,null,null,null,null,0]
[null,null,null,null,null,null,null,null,null,null,null,null,null,null,null,null,null,null,null,null,0]
[null,null,null,null,null,null,null,null,null,null,null,null,null,null,null,null,null,null,null,null,0]
[null,null,null,null,null,null,null,null,null,null,null,null,null,null,null,null,null,null,null,null,0]
[null,null,null,null,null,null,null,null,null,null,null,null,null,null,null,null,null,null,null,null,0]
[null,null,null,null,null,null,null,null,null,null,null,null,null,null,null,null,null,null,null,null,0]
[null,null,null,null,null,null,null,null,null,null,null,null,null,null,null,null,null,null,null,null,0]
[null,null,null,null,null,null,null,null,null,null,null,null,null,null,null,null,null,null,null,null,0]
[null,null,null,null,null,null,null,null,null,null,null,null,null,null,null,null,null,null,null,null,0]
[null,null,null,null,null,null,null,null,null,null,null,null,null,null,null,null,null,null,null,null,0]
[null,null,null,null,null,null,null,null,null,null,null,null,null,null,null,null,null,null,null,null,0]
[null,null,null,null,null,null,null,null,null,null,null,null,null,null,null,null,null,null,null,null,0]
[null,null,null,null,null,null,null,null,null,null,null,null,null,null,null,null,null,null,null,null,0]
[null,null,null,null,null,null,null,null,null,null,null,null,null,null,null,null,null,null,null,null,0]
[null,null,null,null,null,null,null,null,null,null,null,null,null,null,null,null,null,null,null,null,0]
[null,null,null,null,null,null,null,null,null,null,null,null,null,null,null,null,null,null,null,null,0]
[null,null,null,null,null,null,null,null,null,null,null,null,null,null,null,null,null,null,null,null,0]
[null,null,null,null,null,null,null,null,null,null,null,null,null,null,null,null,null,null,null,null,0]
[null,null,null,null,null,null,null,null,null,null,null,null,null,null,null,null,null,null,null,null,{"$f":"I389+K389+M389+O389+Q389","v":0}]
[null,null,null,null,null,null,null,null,null,null,null,null,null,null,null,null,null,null,null,null,0]
[null,null,null,null,null,null,null,null,null,null,null,null,null,null,null,null,null,null,null,null,0]
[null,null,null,null,null,null,null,null,null,null,null,null,null,null,null,null,null,null,null,null,0]
[null,null,null,null,null,null,null,null,null,null,null,null,null,null,null,null,null,null,null,null,0]
[null,null,null,null,null,null,null,null,null,null,null,null,null,null,null,null,null,null,null,null,0]
[null,null,null,null,null,null,null,null,null,null,null,null,null,null,null,null,null,null,null,null,0]
[null,null,null,null,null,null,null,null,null,null,null,null,null,null,null,null,null,null,null,null,0]
[null,null,null,null,null,null,null,null,null,null,null,null,null,null,null,null,null,null,null,null,0]
[null,null,null,null,null,null,null,null,null,null,null,null,null,null,null,null,null,null,null,null,0]
[null,null,null,null,null,null,null,null,null,null,null,null,null,null,null,null,null,null,null,null,0]
[null,null,null,null,null,null,null,null,null,null,null,null,null,null,null,null,null,null,null,null,0]
[null,null,null,null,null,null,null,null,null,null,null,null,null,null,null,null,null,null,null,null,0]
[null,null,null,null,null,null,null,null,null,null,null,null,null,null,null,null,null,null,null,null,0]
[null,null,null,null,null,null,null,null,null,null,null,null,null,null,null,null,null,null,null,null,0]
[null,null,null,null,null,null,null,null,null,null,null,null,null,null,null,null,null,null,null,null,0]
[null,null,null,null,null,null,null,null,null,null,null,null,null,null,null,null,null,null,null,null,0]
[null,null,null,null,null,null,null,null,null,null,null,null,null,null,null,null,null,null,null,null,0]
[null,null,null,null,null,null,null,null,null,null,null,null,null,null,null,null,null,null,null,null,0]
[null,null,null,null,null,null,null,null,null,null,null,null,null,null,null,null,null,null,null,null,0]
[null,null,null,null,null,null,null,null,null,null,null,null,null,null,null,null,null,null,null,null,0]
[null,null,null,null,null,null,null,null,null,null,null,null,null,null,null,null,null,null,null,null,0]
[null,null,null,null,null,null,null,null,null,null,null,null,null,null,null,null,null,null,null,null,0]
[null,null,null,null,null,null,null,null,null,null,null,null,null,null,null,null,null,null,null,null,0]
[null,null,null,null,null,null,null,null,null,null,null,null,null,null,null,null,null,null,null,null,0]
[null,null,null,null,null,null,null,null,null,null,null,null,null,null,null,null,null,null,null,null,0]
[null,null,null,null,null,null,null,null,null,null,null,null,null,null,null,null,null,null,null,null,0]
[null,null,null,null,null,null,null,null,null,null,null,null,null,null,null,null,null,null,null,null,0]
[null,null,null,null,null,null,null,null,null,null,null,null,null,null,null,null,null,null,null,null,0]
[null,null,null,null,null,null,null,null,null,null,null,null,null,null,null,null,null,null,null,null,0]
[null,null,null,null,null,null,null,null,null,null,null,null,null,null,null,null,null,null,null,null,0]
[null,null,null,null,null,null,null,null,null,null,null,null,null,null,null,null,null,null,null,null,0]
[null,null,null,null,null,null,null,null,null,null,null,null,null,null,null,null,null,null,null,null,0]
[null,null,null,null,null,null,null,null,null,null,null,null,null,null,null,null,null,null,null,null,0]
[null,null,null,null,null,null,null,null,null,null,null,null,null,null,null,null,null,null,null,null,0]
[null,null,null,null,null,null,null,null,null,null,null,null,null,null,null,null,null,null,null,null,0]
[null,null,null,null,null,null,null,null,null,null,null,null,null,null,null,null,null,null,null,null,0]
[null,null,null,null,null,null,null,null,null,null,null,null,null,null,null,null,null,null,null,null,0]
[null,null,null,null,null,null,null,null,null,null,null,null,null,null,null,null,null,null,null,null,0]
[null,null,null,null,null,null,null,null,null,null,null,null,null,null,null,null,null,null,null,null,0]
[null,null,null,null,null,null,null,null,null,null,null,null,null,null,null,null,null,null,null,null,0]
[null,null,null,null,null,null,null,null,null,null,null,null,null,null,null,null,null,null,null,null,0]
[null,null,null,null,null,null,null,null,null,null,null,null,null,null,null,null,null,null,null,null,0]
[null,null,null,null,null,null,null,null,null,null,null,null,null,null,null,null,null,null,null,null,0]
[null,null,null,null,null,null,null,null,null,null,null,null,null,null,null,null,null,null,null,null,0]
[null,null,null,null,null,null,null,null,null,null,null,null,null,null,null,null,null,null,null,null,0]
[null,null,null,null,null,null,null,null,null,null,null,null,null,null,null,null,null,null,null,null,0]
[null,null,null,null,null,null,null,null,null,null,null,null,null,null,null,null,null,null,null,null,0]
[null,null,null,null,null,null,null,null,null,null,null,null,null,null,null,null,null,null,null,null,0]
[null,null,null,null,null,null,null,null,null,null,null,null,null,null,null,null,null,null,null,null,0]
[null,null,null,null,null,null,null,null,null,null,null,null,null,null,null,null,null,null,null,null,0]
[null,null,null,null,null,null,null,null,null,null,null,null,null,null,null,null,null,null,null,null,0]
[null,null,null,null,null,null,null,null,null,null,null,null,null,null,null,null,null,null,null,null,0]
[null,null,null,null,null,null,null,null,null,null,null,null,null,null,null,null,null,null,null,null,0]
[null,null,null,null,null,null,null,null,null,null,null,null,null,null,null,null,null,null,null,null,0]
[null,null,null,null,null,null,null,null,null,null,null,null,null,null,null,null,null,null,null,null,0]
[null,null,null,null,null,null,null,null,null,null,null,null,null,null,null,null,null,null,null,null,0]
[null,null,null,null,null,null,null,null,null,null,null,null,null,null,null,null,null,null,null,null,0]
[null,null,null,null,null,null,null,null,null,null,null,null,null,null,null,null,null,null,null,null,0]
[null,null,null,null,null,null,null,null,null,null,null,null,null,null,null,null,null,null,null,null,0]
[null,null,null,null,null,null,null,null,null,null,null,null,null,null,null,null,null,null,null,null,0]
[null,null,null,null,null,null,null,null,null,null,null,null,null,null,null,null,null,null,null,null,0]
[null,null,null,null,null,null,null,null,null,null,null,null,null,null,null,null,null,null,null,null,0]
[null,null,null,null,null,null,null,null,null,null,null,null,null,null,null,null,null,null,null,null,0]
[null,null,null,null,null,null,null,null,null,null,null,null,null,null,null,null,null,null,null,null,{"$f":"I453+K453+M453+O453+Q453","v":0}]
[null,null,null,null,null,null,null,null,null,null,null,null,null,null,null,null,null,null,null,null,0]
[null,null,null,null,null,null,null,null,null,null,null,null,null,null,null,null,null,null,null,null,0]
[null,null,null,null,null,null,null,null,null,null,null,null,null,null,null,null,null,null,null,null,0]
[null,null,null,null,null,null,null,null,null,null,null,null,null,null,null,null,null,null,null,null,0]
[null,null,null,null,null,null,null,null,null,null,null,null,null,null,null,null,null,null,null,null,0]
[null,null,null,null,null,null,null,null,null,null,null,null,null,null,null,null,null,null,null,null,0]
[null,null,null,null,null,null,null,null,null,null,null,null,null,null,null,null,null,null,null,null,0]
[null,null,null,null,null,null,null,null,null,null,null,null,null,null,null,null,null,null,null,null,0]
[null,null,null,null,null,null,null,null,null,null,null,null,null,null,null,null,null,null,null,null,0]
[null,null,null,null,null,null,null,null,null,null,null,null,null,null,null,null,null,null,null,null,0]
[null,null,null,null,null,null,null,null,null,null,null,null,null,null,null,null,null,null,null,null,0]
[null,null,null,null,null,null,null,null,null,null,null,null,null,null,null,null,null,null,null,null,0]
[null,null,null,null,null,null,null,null,null,null,null,null,null,null,null,null,null,null,null,null,0]
[null,null,null,null,null,null,null,null,null,null,null,null,null,null,null,null,null,null,null,null,0]
[null,null,null,null,null,null,null,null,null,null,null,null,null,null,null,null,null,null,null,null,0]
[null,null,null,null,null,null,null,null,null,null,null,null,null,null,null,null,null,null,null,null,0]
[null,null,null,null,null,null,null,null,null,null,null,null,null,null,null,null,null,null,null,null,0]
[null,null,null,null,null,null,null,null,null,null,null,null,null,null,null,null,null,null,null,null,0]
[null,null,null,null,null,null,null,null,null,null,null,null,null,null,null,null,null,null,null,null,0]
[null,null,null,null,null,null,null,null,null,null,null,null,null,null,null,null,null,null,null,null,0]
[null,null,null,null,null,null,null,null,null,null,null,null,null,null,null,null,null,null,null,null,0]
[null,null,null,null,null,null,null,null,null,null,null,null,null,null,null,null,null,null,null,null,0]
[null,null,null,null,null,null,null,null,null,null,null,null,null,null,null,null,null,null,null,null,0]
[null,null,null,null,null,null,null,null,null,null,null,null,null,null,null,null,null,null,null,null,0]
[null,null,null,null,null,null,null,null,null,null,null,null,null,null,null,null,null,null,null,null,0]
[null,null,null,null,null,null,null,null,null,null,null,null,null,null,null,null,null,null,null,null,0]
[null,null,null,null,null,null,null,null,null,null,null,null,null,null,null,null,null,null,null,null,0]
[null,null,null,null,null,null,null,null,null,null,null,null,null,null,null,null,null,null,null,null,0]
[null,null,null,null,null,null,null,null,null,null,null,null,null,null,null,null,null,null,null,null,0]
[null,null,null,null,null,null,null,null,null,null,null,null,null,null,null,null,null,null,null,null,0]
[null,null,null,null,null,null,null,null,null,null,null,null,null,null,null,null,null,null,null,null,0]
[null,null,null,null,null,null,null,null,null,null,null,null,null,null,null,null,null,null,null,null,0]
[null,null,null,null,null,null,null,null,null,null,null,null,null,null,null,null,null,null,null,null,0]
[null,null,null,null,null,null,null,null,null,null,null,null,null,null,null,null,null,null,null,null,0]
[null,null,null,null,null,null,null,null,null,null,null,null,null,null,null,null,null,null,null,null,0]
[null,null,null,null,null,null,null,null,null,null,null,null,null,null,null,null,null,null,null,null,0]
[null,null,null,null,null,null,null,null,null,null,null,null,null,null,null,null,null,null,null,null,0]
[null,null,null,null,null,null,null,null,null,null,null,null,null,null,null,null,null,null,null,null,0]
[null,null,null,null,null,null,null,null,null,null,null,null,null,null,null,null,null,null,null,null,0]
[null,null,null,null,null,null,null,null,null,null,null,null,null,null,null,null,null,null,null,null,0]
[null,null,null,null,null,null,null,null,null,null,null,null,null,null,null,null,null,null,null,null,0]
[null,null,null,null,null,null,null,null,null,null,null,null,null,null,null,null,null,null,null,null,0]
[null,null,null,null,null,null,null,null,null,null,null,null,null,null,null,null,null,null,null,null,0]
[null,null,null,null,null,null,null,null,null,null,null,null,null,null,null,null,null,null,null,null,0]
[null,null,null,null,null,null,null,null,null,null,null,null,null,null,null,null,null,null,null,null,0]
[null,null,null,null,null,null,null,null,null,null,null,null,null,null,null,null,null,null,null,null,0]
[null,null,null,null,null,null,null,null,null,null,null,null,null,null,null,null,null,null,null,null,0]
[null,null,null,null,null,null,null,null,null,null,null,null,null,null,null,null,null,null,null,null,0]
[null,null,null,null,null,null,null,null,null,null,null,null,null,null,null,null,null,null,null,null,0]
[null,null,null,null,null,null,null,null,null,null,null,null,null,null,null,null,null,null,null,null,0]
[null,null,null,null,null,null,null,null,null,null,null,null,null,null,null,null,null,null,null,null,0]
[null,null,null,null,null,null,null,null,null,null,null,null,null,null,null,null,null,null,null,null,0]
[null,null,null,null,null,null,null,null,null,null,null,null,null,null,null,null,null,null,null,null,0]
[null,null,null,null,null,null,null,null,null,null,null,null,null,null,null,null,null,null,null,null,0]
[null,null,null,null,null,null,null,null,null,null,null,null,null,null,null,null,null,null,null,null,0]
[null,null,null,null,null,null,null,null,null,null,null,null,null,null,null,null,null,null,null,null,0]
[null,null,null,null,null,null,null,null,null,null,null,null,null,null,null,null,null,null,null,null,0]
[null,null,null,null,null,null,null,null,null,null,null,null,null,null,null,null,null,null,null,null,0]
[null,null,null,null,null,null,null,null,null,null,null,null,null,null,null,null,null,null,null,null,0]
[null,null,null,null,null,null,null,null,null,null,null,null,null,null,null,null,null,null,null,null,0]
[null,null,null,null,null,null,null,null,null,null,null,null,null,null,null,null,null,null,null,null,0]
[null,null,null,null,null,null,null,null,null,null,null,null,null,null,null,null,null,null,null,null,0]
[null,null,null,null,null,null,null,null,null,null,null,null,null,null,null,null,null,null,null,null,0]
[null,null,null,null,null,null,null,null,null,null,null,null,null,null,null,null,null,null,null,null,{"$f":"I517+K517+M517+O517+Q517","v":0}]
[null,null,null,null,null,null,null,null,null,null,null,null,null,null,null,null,null,null,null,null,0]
[null,null,null,null,null,null,null,null,null,null,null,null,null,null,null,null,null,null,null,null,0]
[null,null,null,null,null,null,null,null,null,null,null,null,null,null,null,null,null,null,null,null,0]
[null,null,null,null,null,null,null,null,null,null,null,null,null,null,null,null,null,null,null,null,0]
[null,null,null,null,null,null,null,null,null,null,null,null,null,null,null,null,null,null,null,null,0]
[null,null,null,null,null,null,null,null,null,null,null,null,null,null,null,null,null,null,null,null,0]
[null,null,null,null,null,null,null,null,null,null,null,null,null,null,null,null,null,null,null,null,0]
[null,null,null,null,null,null,null,null,null,null,null,null,null,null,null,null,null,null,null,null,0]
[null,null,null,null,null,null,null,null,null,null,null,null,null,null,null,null,null,null,null,null,0]
[null,null,null,null,null,null,null,null,null,null,null,null,null,null,null,null,null,null,null,null,0]
[null,null,null,null,null,null,null,null,null,null,null,null,null,null,null,null,null,null,null,null,0]
[null,null,null,null,null,null,null,null,null,null,null,null,null,null,null,null,null,null,null,null,0]
[null,null,null,null,null,null,null,null,null,null,null,null,null,null,null,null,null,null,null,null,0]
[null,null,null,null,null,null,null,null,null,null,null,null,null,null,null,null,null,null,null,null,0]
[null,null,null,null,null,null,null,null,null,null,null,null,null,null,null,null,null,null,null,null,0]
[null,null,null,null,null,null,null,null,null,null,null,null,null,null,null,null,null,null,null,null,0]
[null,null,null,null,null,null,null,null,null,null,null,null,null,null,null,null,null,null,null,null,0]
[null,null,null,null,null,null,null,null,null,null,null,null,null,null,null,null,null,null,null,null,0]
[null,null,null,null,null,null,null,null,null,null,null,null,null,null,null,null,null,null,null,null,0]
[null,null,null,null,null,null,null,null,null,null,null,null,null,null,null,null,null,null,null,null,0]
[null,null,null,null,null,null,null,null,null,null,null,null,null,null,null,null,null,null,null,null,0]
[null,null,null,null,null,null,null,null,null,null,null,null,null,null,null,null,null,null,null,null,0]
[null,null,null,null,null,null,null,null,null,null,null,null,null,null,null,null,null,null,null,null,0]
[null,null,null,null,null,null,null,null,null,null,null,null,null,null,null,null,null,null,null,null,0]
[null,null,null,null,null,null,null,null,null,null,null,null,null,null,null,null,null,null,null,null,0]
[null,null,null,null,null,null,null,null,null,null,null,null,null,null,null,null,null,null,null,null,0]
[null,null,null,null,null,null,null,null,null,null,null,null,null,null,null,null,null,null,null,null,0]
[null,null,null,null,null,null,null,null,null,null,null,null,null,null,null,null,null,null,null,null,0]
[null,null,null,null,null,null,null,null,null,null,null,null,null,null,null,null,null,null,null,null,0]
[null,null,null,null,null,null,null,null,null,null,null,null,null,null,null,null,null,null,null,null,0]
[null,null,null,null,null,null,null,null,null,null,null,null,null,null,null,null,null,null,null,null,0]
[null,null,null,null,null,null,null,null,null,null,null,null,null,null,null,null,null,null,null,null,0]
[null,null,null,null,null,null,null,null,null,null,null,null,null,null,null,null,null,null,null,null,0]
[null,null,null,null,null,null,null,null,null,null,null,null,null,null,null,null,null,null,null,null,0]
[null,null,null,null,null,null,null,null,null,null,null,null,null,null,null,null,null,null,null,null,0]
[null,null,null,null,null,null,null,null,null,null,null,null,null,null,null,null,null,null,null,null,0]
[null,null,null,null,null,null,null,null,null,null,null,null,null,null,null,null,null,null,null,null,0]
[null,null,null,null,null,null,null,null,null,null,null,null,null,null,null,null,null,null,null,null,0]
[null,null,null,null,null,null,null,null,null,null,null,null,null,null,null,null,null,null,null,null,0]
[null,null,null,null,null,null,null,null,null,null,null,null,null,null,null,null,null,null,null,null,0]
[null,null,null,null,null,null,null,null,null,null,null,null,null,null,null,null,null,null,null,null,0]
[null,null,null,null,null,null,null,null,null,null,null,null,null,null,null,null,null,null,null,null,0]
[null,null,null,null,null,null,null,null,null,null,null,null,null,null,null,null,null,null,null,null,0]
[null,null,null,null,null,null,null,null,null,null,null,null,null,null,null,null,null,null,null,null,0]
[null,null,null,null,null,null,null,null,null,null,null,null,null,null,null,null,null,null,null,null,0]
[null,null,null,null,null,null,null,null,null,null,null,null,null,null,null,null,null,null,null,null,0]
[null,null,null,null,null,null,null,null,null,null,null,null,null,null,null,null,null,null,null,null,0]
[null,null,null,null,null,null,null,null,null,null,null,null,null,null,null,null,null,null,null,null,0]
[null,null,null,null,null,null,null,null,null,null,null,null,null,null,null,null,null,null,null,null,0]
[null,null,null,null,null,null,null,null,null,null,null,null,null,null,null,null,null,null,null,null,0]
[null,null,null,null,null,null,null,null,null,null,null,null,null,null,null,null,null,null,null,null,0]
[null,null,null,null,null,null,null,null,null,null,null,null,null,null,null,null,null,null,null,null,0]
[null,null,null,null,null,null,null,null,null,null,null,null,null,null,null,null,null,null,null,null,0]
[null,null,null,null,null,null,null,null,null,null,null,null,null,null,null,null,null,null,null,null,0]
[null,null,null,null,null,null,null,null,null,null,null,null,null,null,null,null,null,null,null,null,0]
[null,null,null,null,null,null,null,null,null,null,null,null,null,null,null,null,null,null,null,null,0]
[null,null,null,null,null,null,null,null,null,null,null,null,null,null,null,null,null,null,null,null,0]
[null,null,null,null,null,null,null,null,null,null,null,null,null,null,null,null,null,null,null,null,0]
[null,null,null,null,null,null,null,null,null,null,null,null,null,null,null,null,null,null,null,null,0]
[null,null,null,null,null,null,null,null,null,null,null,null,null,null,null,null,null,null,null,null,0]
[null,null,null,null,null,null,null,null,null,null,null,null,null,null,null,null,null,null,null,null,0]
[null,null,null,null,null,null,null,null,null,null,null,null,null,null,null,null,null,null,null,null,0]
[null,null,null,null,null,null,null,null,null,null,null,null,null,null,null,null,null,null,null,null,0]
[null,null,null,null,null,null,null,null,null,null,null,null,null,null,null,null,null,null,null,null,{"$f":"I581+K581+M581+O581+Q581","v":0}]
[null,null,null,null,null,null,null,null,null,null,null,null,null,null,null,null,null,null,null,null,0]
[null,null,null,null,null,null,null,null,null,null,null,null,null,null,null,null,null,null,null,null,0]
[null,null,null,null,null,null,null,null,null,null,null,null,null,null,null,null,null,null,null,null,0]
[null,null,null,null,null,null,null,null,null,null,null,null,null,null,null,null,null,null,null,null,0]
[null,null,null,null,null,null,null,null,null,null,null,null,null,null,null,null,null,null,null,null,0]
[null,null,null,null,null,null,null,null,null,null,null,null,null,null,null,null,null,null,null,null,0]
[null,null,null,null,null,null,null,null,null,null,null,null,null,null,null,null,null,null,null,null,0]
[null,null,null,null,null,null,null,null,null,null,null,null,null,null,null,null,null,null,null,null,0]
[null,null,null,null,null,null,null,null,null,null,null,null,null,null,null,null,null,null,null,null,0]
[null,null,null,null,null,null,null,null,null,null,null,null,null,null,null,null,null,null,null,null,0]
[null,null,null,null,null,null,null,null,null,null,null,null,null,null,null,null,null,null,null,null,0]
[null,null,null,null,null,null,null,null,null,null,null,null,null,null,null,null,null,null,null,null,0]
[null,null,null,null,null,null,null,null,null,null,null,null,null,null,null,null,null,null,null,null,0]
[null,null,null,null,null,null,null,null,null,null,null,null,null,null,null,null,null,null,null,null,0]
[null,null,null,null,null,null,null,null,null,null,null,null,null,null,null,null,null,null,null,null,0]
[null,null,null,null,null,null,null,null,null,null,null,null,null,null,null,null,null,null,null,null,0]
[null,null,null,null,null,null,null,null,null,null,null,null,null,null,null,null,null,null,null,null,0]
[null,null,null,null,null,null,null,null,null,null,null,null,null,null,null,null,null,null,null,null,0]
[null,null,null,null,null,null,null,null,null,null,null,null,null,null,null,null,null,null,null,null,0]
[null,null,null,null,null,null,null,null,null,null,null,null,null,null,null,null,null,null,null,null,0]
[null,null,null,null,null,null,null,null,null,null,null,null,null,null,null,null,null,null,null,null,0]
[null,null,null,null,null,null,null,null,null,null,null,null,null,null,null,null,null,null,null,null,0]
[null,null,null,null,null,null,null,null,null,null,null,null,null,null,null,null,null,null,null,null,0]
[null,null,null,null,null,null,null,null,null,null,null,null,null,null,null,null,null,null,null,null,0]
[null,null,null,null,null,null,null,null,null,null,null,null,null,null,null,null,null,null,null,null,0]
[null,null,null,null,null,null,null,null,null,null,null,null,null,null,null,null,null,null,null,null,0]
[null,null,null,null,null,null,null,null,null,null,null,null,null,null,null,null,null,null,null,null,0]
[null,null,null,null,null,null,null,null,null,null,null,null,null,null,null,null,null,null,null,null,0]
[null,null,null,null,null,null,null,null,null,null,null,null,null,null,null,null,null,null,null,null,0]
[null,null,null,null,null,null,null,null,null,null,null,null,null,null,null,null,null,null,null,null,0]
[null,null,null,null,null,null,null,null,null,null,null,null,null,null,null,null,null,null,null,null,0]
[null,null,null,null,null,null,null,null,null,null,null,null,null,null,null,null,null,null,null,null,0]
[null,null,null,null,null,null,null,null,null,null,null,null,null,null,null,null,null,null,null,null,0]
[null,null,null,null,null,null,null,null,null,null,null,null,null,null,null,null,null,null,null,null,0]
[null,null,null,null,null,null,null,null,null,null,null,null,null,null,null,null,null,null,null,null,0]
[null,null,null,null,null,null,null,null,null,null,null,null,null,null,null,null,null,null,null,null,0]
[null,null,null,null,null,null,null,null,null,null,null,null,null,null,null,null,null,null,null,null,0]
[null,null,null,null,null,null,null,null,null,null,null,null,null,null,null,null,null,null,null,null,0]
[null,null,null,null,null,null,null,null,null,null,null,null,null,null,null,null,null,null,null,null,0]
[null,null,null,null,null,null,null,null,null,null,null,null,null,null,null,null,null,null,null,null,0]
[null,null,null,null,null,null,null,null,null,null,null,null,null,null,null,null,null,null,null,null,0]
[null,null,null,null,null,null,null,null,null,null,null,null,null,null,null,null,null,null,null,null,0]
[null,null,null,null,null,null,null,null,null,null,null,null,null,null,null,null,null,null,null,null,0]
[null,null,null,null,null,null,null,null,null,null,null,null,null,null,null,null,null,null,null,null,0]
[null,null,null,null,null,null,null,null,null,null,null,null,null,null,null,null,null,null,null,null,0]
[null,null,null,null,null,null,null,null,null,null,null,null,null,null,null,null,null,null,null,null,0]
[null,null,null,null,null,null,null,null,null,null,null,null,null,null,null,null,null,null,null,null,0]
[null,null,null,null,null,null,null,null,null,null,null,null,null,null,null,null,null,null,null,null,0]
[null,null,null,null,null,null,null,null,null,null,null,null,null,null,null,null,null,null,null,null,0]
[null,null,null,null,null,null,null,null,null,null,null,null,null,null,null,null,null,null,null,null,0]
[null,null,null,null,null,null,null,null,null,null,null,null,null,null,null,null,null,null,null,null,0]
[null,null,null,null,null,null,null,null,null,null,null,null,null,null,null,null,null,null,null,null,0]
[null,null,null,null,null,null,null,null,null,null,null,null,null,null,null,null,null,null,null,null,0]
[null,null,null,null,null,null,null,null,null,null,null,null,null,null,null,null,null,null,null,null,0]
[null,null,null,null,null,null,null,null,null,null,null,null,null,null,null,null,null,null,null,null,0]
[null,null,null,null,null,null,null,null,null,null,null,null,null,null,null,null,null,null,null,null,0]
[null,null,null,null,null,null,null,null,null,null,null,null,null,null,null,null,null,null,null,null,0]
[null,null,null,null,null,null,null,null,null,null,null,null,null,null,null,null,null,null,null,null,0]
[null,null,null,null,null,null,null,null,null,null,null,null,null,null,null,null,null,null,null,null,0]
[null,null,null,null,null,null,null,null,null,null,null,null,null,null,null,null,null,null,null,null,0]
[null,null,null,null,null,null,null,null,null,null,null,null,null,null,null,null,null,null,null,null,0]
[null,null,null,null,null,null,null,null,null,null,null,null,null,null,null,null,null,null,null,null,0]
[null,null,null,null,null,null,null,null,null,null,null,null,null,null,null,null,null,null,null,null,0]
[null,null,null,null,null,null,null,null,null,null,null,null,null,null,null,null,null,null,null,null,{"$f":"I645+K645+M645+O645+Q645","v":0}]
[null,null,null,null,null,null,null,null,null,null,null,null,null,null,null,null,null,null,null,null,0]
[null,null,null,null,null,null,null,null,null,null,null,null,null,null,null,null,null,null,null,null,0]
[null,null,null,null,null,null,null,null,null,null,null,null,null,null,null,null,null,null,null,null,0]
[null,null,null,null,null,null,null,null,null,null,null,null,null,null,null,null,null,null,null,null,0]
[null,null,null,null,null,null,null,null,null,null,null,null,null,null,null,null,null,null,null,null,0]
[null,null,null,null,null,null,null,null,null,null,null,null,null,null,null,null,null,null,null,null,0]
[null,null,null,null,null,null,null,null,null,null,null,null,null,null,null,null,null,null,null,null,0]
[null,null,null,null,null,null,null,null,null,null,null,null,null,null,null,null,null,null,null,null,0]
[null,null,null,null,null,null,null,null,null,null,null,null,null,null,null,null,null,null,null,null,0]
[null,null,null,null,null,null,null,null,null,null,null,null,null,null,null,null,null,null,null,null,0]
[null,null,null,null,null,null,null,null,null,null,null,null,null,null,null,null,null,null,null,null,0]
[null,null,null,null,null,null,null,null,null,null,null,null,null,null,null,null,null,null,null,null,0]
[null,null,null,null,null,null,null,null,null,null,null,null,null,null,null,null,null,null,null,null,0]
[null,null,null,null,null,null,null,null,null,null,null,null,null,null,null,null,null,null,null,null,0]
[null,null,null,null,null,null,null,null,null,null,null,null,null,null,null,null,null,null,null,null,0]
[null,null,null,null,null,null,null,null,null,null,null,null,null,null,null,null,null,null,null,null,0]
[null,null,null,null,null,null,null,null,null,null,null,null,null,null,null,null,null,null,null,null,0]
[null,null,null,null,null,null,null,null,null,null,null,null,null,null,null,null,null,null,null,null,0]
[null,null,null,null,null,null,null,null,null,null,null,null,null,null,null,null,null,null,null,null,0]
[null,null,null,null,null,null,null,null,null,null,null,null,null,null,null,null,null,null,null,null,0]
[null,null,null,null,null,null,null,null,null,null,null,null,null,null,null,null,null,null,null,null,0]
[null,null,null,null,null,null,null,null,null,null,null,null,null,null,null,null,null,null,null,null,0]
[null,null,null,null,null,null,null,null,null,null,null,null,null,null,null,null,null,null,null,null,0]
[null,null,null,null,null,null,null,null,null,null,null,null,null,null,null,null,null,null,null,null,0]
[null,null,null,null,null,null,null,null,null,null,null,null,null,null,null,null,null,null,null,null,0]
[null,null,null,null,null,null,null,null,null,null,null,null,null,null,null,null,null,null,null,null,0]
[null,null,null,null,null,null,null,null,null,null,null,null,null,null,null,null,null,null,null,null,0]
[null,null,null,null,null,null,null,null,null,null,null,null,null,null,null,null,null,null,null,null,0]
[null,null,null,null,null,null,null,null,null,null,null,null,null,null,null,null,null,null,null,null,0]
[null,null,null,null,null,null,null,null,null,null,null,null,null,null,null,null,null,null,null,null,0]
[null,null,null,null,null,null,null,null,null,null,null,null,null,null,null,null,null,null,null,null,0]
[null,null,null,null,null,null,null,null,null,null,null,null,null,null,null,null,null,null,null,null,0]
[null,null,null,null,null,null,null,null,null,null,null,null,null,null,null,null,null,null,null,null,0]
[null,null,null,null,null,null,null,null,null,null,null,null,null,null,null,null,null,null,null,null,0]
[null,null,null,null,null,null,null,null,null,null,null,null,null,null,null,null,null,null,null,null,0]
[null,null,null,null,null,null,null,null,null,null,null,null,null,null,null,null,null,null,null,null,0]
[null,null,null,null,null,null,null,null,null,null,null,null,null,null,null,null,null,null,null,null,0]
[null,null,null,null,null,null,null,null,null,null,null,null,null,null,null,null,null,null,null,null,0]
[null,null,null,null,null,null,null,null,null,null,null,null,null,null,null,null,null,null,null,null,0]
[null,null,null,null,null,null,null,null,null,null,null,null,null,null,null,null,null,null,null,null,0]
[null,null,null,null,null,null,null,null,null,null,null,null,null,null,null,null,null,null,null,null,0]
[null,null,null,null,null,null,null,null,null,null,null,null,null,null,null,null,null,null,null,null,0]
[null,null,null,null,null,null,null,null,null,null,null,null,null,null,null,null,null,null,null,null,0]
[null,null,null,null,null,null,null,null,null,null,null,null,null,null,null,null,null,null,null,null,0]
[null,null,null,null,null,null,null,null,null,null,null,null,null,null,null,null,null,null,null,null,0]
[null,null,null,null,null,null,null,null,null,null,null,null,null,null,null,null,null,null,null,null,0]
[null,null,null,null,null,null,null,null,null,null,null,null,null,null,null,null,null,null,null,null,0]
[null,null,null,null,null,null,null,null,null,null,null,null,null,null,null,null,null,null,null,null,0]
[null,null,null,null,null,null,null,null,null,null,null,null,null,null,null,null,null,null,null,null,0]
[null,null,null,null,null,null,null,null,null,null,null,null,null,null,null,null,null,null,null,null,0]
[null,null,null,null,null,null,null,null,null,null,null,null,null,null,null,null,null,null,null,null,0]
[null,null,null,null,null,null,null,null,null,null,null,null,null,null,null,null,null,null,null,null,0]
[null,null,null,null,null,null,null,null,null,null,null,null,null,null,null,null,null,null,null,null,0]
[null,null,null,null,null,null,null,null,null,null,null,null,null,null,null,null,null,null,null,null,0]
[null,null,null,null,null,null,null,null,null,null,null,null,null,null,null,null,null,null,null,null,0]
[null,null,null,null,null,null,null,null,null,null,null,null,null,null,null,null,null,null,null,null,0]
[null,null,null,null,null,null,null,null,null,null,null,null,null,null,null,null,null,null,null,null,0]
[null,null,null,null,null,null,null,null,null,null,null,null,null,null,null,null,null,null,null,null,0]
[null,null,null,null,null,null,null,null,null,null,null,null,null,null,null,null,null,null,null,null,0]
[null,null,null,null,null,null,null,null,null,null,null,null,null,null,null,null,null,null,null,null,0]
[null,null,null,null,null,null,null,null,null,null,null,null,null,null,null,null,null,null,null,null,0]
[null,null,null,null,null,null,null,null,null,null,null,null,null,null,null,null,null,null,null,null,0]
[null,null,null,null,null,null,null,null,null,null,null,null,null,null,null,null,null,null,null,null,0]
[null,null,null,null,null,null,null,null,null,null,null,null,null,null,null,null,null,null,null,null,{"$f":"I709+K709+M709+O709+Q709","v":0}]
[null,null,null,null,null,null,null,null,null,null,null,null,null,null,null,null,null,null,null,null,0]
[null,null,null,null,null,null,null,null,null,null,null,null,null,null,null,null,null,null,null,null,0]
[null,null,null,null,null,null,null,null,null,null,null,null,null,null,null,null,null,null,null,null,0]
[null,null,null,null,null,null,null,null,null,null,null,null,null,null,null,null,null,null,null,null,0]
[null,null,null,null,null,null,null,null,null,null,null,null,null,null,null,null,null,null,null,null,0]
[null,null,null,null,null,null,null,null,null,null,null,null,null,null,null,null,null,null,null,null,0]
[null,null,null,null,null,null,null,null,null,null,null,null,null,null,null,null,null,null,null,null,0]
[null,null,null,null,null,null,null,null,null,null,null,null,null,null,null,null,null,null,null,null,0]
[null,null,null,null,null,null,null,null,null,null,null,null,null,null,null,null,null,null,null,null,0]
[null,null,null,null,null,null,null,null,null,null,null,null,null,null,null,null,null,null,null,null,0]
[null,null,null,null,null,null,null,null,null,null,null,null,null,null,null,null,null,null,null,null,0]
[null,null,null,null,null,null,null,null,null,null,null,null,null,null,null,null,null,null,null,null,0]
[null,null,null,null,null,null,null,null,null,null,null,null,null,null,null,null,null,null,null,null,0]
[null,null,null,null,null,null,null,null,null,null,null,null,null,null,null,null,null,null,null,null,0]
[null,null,null,null,null,null,null,null,null,null,null,null,null,null,null,null,null,null,null,null,0]
[null,null,null,null,null,null,null,null,null,null,null,null,null,null,null,null,null,null,null,null,0]
[null,null,null,null,null,null,null,null,null,null,null,null,null,null,null,null,null,null,null,null,0]
[null,null,null,null,null,null,null,null,null,null,null,null,null,null,null,null,null,null,null,null,0]
[null,null,null,null,null,null,null,null,null,null,null,null,null,null,null,null,null,null,null,null,0]
[null,null,null,null,null,null,null,null,null,null,null,null,null,null,null,null,null,null,null,null,0]
[null,null,null,null,null,null,null,null,null,null,null,null,null,null,null,null,null,null,null,null,0]
[null,null,null,null,null,null,null,null,null,null,null,null,null,null,null,null,null,null,null,null,0]
[null,null,null,null,null,null,null,null,null,null,null,null,null,null,null,null,null,null,null,null,0]
[null,null,null,null,null,null,null,null,null,null,null,null,null,null,null,null,null,null,null,null,0]
[null,null,null,null,null,null,null,null,null,null,null,null,null,null,null,null,null,null,null,null,0]
[null,null,null,null,null,null,null,null,null,null,null,null,null,null,null,null,null,null,null,null,0]
[null,null,null,null,null,null,null,null,null,null,null,null,null,null,null,null,null,null,null,null,0]
[null,null,null,null,null,null,null,null,null,null,null,null,null,null,null,null,null,null,null,null,0]
[null,null,null,null,null,null,null,null,null,null,null,null,null,null,null,null,null,null,null,null,0]
[null,null,null,null,null,null,null,null,null,null,null,null,null,null,null,null,null,null,null,null,0]
[null,null,null,null,null,null,null,null,null,null,null,null,null,null,null,null,null,null,null,null,0]
[null,null,null,null,null,null,null,null,null,null,null,null,null,null,null,null,null,null,null,null,0]
[null,null,null,null,null,null,null,null,null,null,null,null,null,null,null,null,null,null,null,null,0]
[null,null,null,null,null,null,null,null,null,null,null,null,null,null,null,null,null,null,null,null,0]
[null,null,null,null,null,null,null,null,null,null,null,null,null,null,null,null,null,null,null,null,0]
[null,null,null,null,null,null,null,null,null,null,null,null,null,null,null,null,null,null,null,null,0]
[null,null,null,null,null,null,null,null,null,null,null,null,null,null,null,null,null,null,null,null,0]
[null,null,null,null,null,null,null,null,null,null,null,null,null,null,null,null,null,null,null,null,0]
[null,null,null,null,null,null,null,null,null,null,null,null,null,null,null,null,null,null,null,null,0]
[null,null,null,null,null,null,null,null,null,null,null,null,null,null,null,null,null,null,null,null,0]
[null,null,null,null,null,null,null,null,null,null,null,null,null,null,null,null,null,null,null,null,0]
[null,null,null,null,null,null,null,null,null,null,null,null,null,null,null,null,null,null,null,null,0]
[null,null,null,null,null,null,null,null,null,null,null,null,null,null,null,null,null,null,null,null,0]
[null,null,null,null,null,null,null,null,null,null,null,null,null,null,null,null,null,null,null,null,0]
[null,null,null,null,null,null,null,null,null,null,null,null,null,null,null,null,null,null,null,null,0]
[null,null,null,null,null,null,null,null,null,null,null,null,null,null,null,null,null,null,null,null,0]
[null,null,null,null,null,null,null,null,null,null,null,null,null,null,null,null,null,null,null,null,0]
[null,null,null,null,null,null,null,null,null,null,null,null,null,null,null,null,null,null,null,null,0]
[null,null,null,null,null,null,null,null,null,null,null,null,null,null,null,null,null,null,null,null,0]
[null,null,null,null,null,null,null,null,null,null,null,null,null,null,null,null,null,null,null,null,0]
[null,null,null,null,null,null,null,null,null,null,null,null,null,null,null,null,null,null,null,null,0]
[null,null,null,null,null,null,null,null,null,null,null,null,null,null,null,null,null,null,null,null,0]
[null,null,null,null,null,null,null,null,null,null,null,null,null,null,null,null,null,null,null,null,0]
[null,null,null,null,null,null,null,null,null,null,null,null,null,null,null,null,null,null,null,null,0]
[null,null,null,null,null,null,null,null,null,null,null,null,null,null,null,null,null,null,null,null,0]
[null,null,null,null,null,null,null,null,null,null,null,null,null,null,null,null,null,null,null,null,0]
[null,null,null,null,null,null,null,null,null,null,null,null,null,null,null,null,null,null,null,null,0]
[null,null,null,null,null,null,null,null,null,null,null,null,null,null,null,null,null,null,null,null,0]
[null,null,null,null,null,null,null,null,null,null,null,null,null,null,null,null,null,null,null,null,0]
[null,null,null,null,null,null,null,null,null,null,null,null,null,null,null,null,null,null,null,null,0]
[null,null,null,null,null,null,null,null,null,null,null,null,null,null,null,null,null,null,null,null,0]
[null,null,null,null,null,null,null,null,null,null,null,null,null,null,null,null,null,null,null,null,0]
[null,null,null,null,null,null,null,null,null,null,null,null,null,null,null,null,null,null,null,null,0]
[null,null,null,null,null,null,null,null,null,null,null,null,null,null,null,null,null,null,null,null,{"$f":"I773+K773+M773+O773+Q773","v":0}]
[null,null,null,null,null,null,null,null,null,null,null,null,null,null,null,null,null,null,null,null,0]
[null,null,null,null,null,null,null,null,null,null,null,null,null,null,null,null,null,null,null,null,0]
[null,null,null,null,null,null,null,null,null,null,null,null,null,null,null,null,null,null,null,null,0]
[null,null,null,null,null,null,null,null,null,null,null,null,null,null,null,null,null,null,null,null,0]
[null,null,null,null,null,null,null,null,null,null,null,null,null,null,null,null,null,null,null,null,0]
[null,null,null,null,null,null,null,null,null,null,null,null,null,null,null,null,null,null,null,null,0]
[null,null,null,null,null,null,null,null,null,null,null,null,null,null,null,null,null,null,null,null,0]
[null,null,null,null,null,null,null,null,null,null,null,null,null,null,null,null,null,null,null,null,0]
[null,null,null,null,null,null,null,null,null,null,null,null,null,null,null,null,null,null,null,null,0]
[null,null,null,null,null,null,null,null,null,null,null,null,null,null,null,null,null,null,null,null,0]
[null,null,null,null,null,null,null,null,null,null,null,null,null,null,null,null,null,null,null,null,0]
[null,null,null,null,null,null,null,null,null,null,null,null,null,null,null,null,null,null,null,null,0]
[null,null,null,null,null,null,null,null,null,null,null,null,null,null,null,null,null,null,null,null,0]
[null,null,null,null,null,null,null,null,null,null,null,null,null,null,null,null,null,null,null,null,0]
[null,null,null,null,null,null,null,null,null,null,null,null,null,null,null,null,null,null,null,null,0]
[null,null,null,null,null,null,null,null,null,null,null,null,null,null,null,null,null,null,null,null,0]
[null,null,null,null,null,null,null,null,null,null,null,null,null,null,null,null,null,null,null,null,0]
[null,null,null,null,null,null,null,null,null,null,null,null,null,null,null,null,null,null,null,null,0]
[null,null,null,null,null,null,null,null,null,null,null,null,null,null,null,null,null,null,null,null,0]
[null,null,null,null,null,null,null,null,null,null,null,null,null,null,null,null,null,null,null,null,0]
[null,null,null,null,null,null,null,null,null,null,null,null,null,null,null,null,null,null,null,null,0]
[null,null,null,null,null,null,null,null,null,null,null,null,null,null,null,null,null,null,null,null,0]
[null,null,null,null,null,null,null,null,null,null,null,null,null,null,null,null,null,null,null,null,0]
[null,null,null,null,null,null,null,null,null,null,null,null,null,null,null,null,null,null,null,null,0]
[null,null,null,null,null,null,null,null,null,null,null,null,null,null,null,null,null,null,null,null,0]
[null,null,null,null,null,null,null,null,null,null,null,null,null,null,null,null,null,null,null,null,0]
[null,null,null,null,null,null,null,null,null,null,null,null,null,null,null,null,null,null,null,null,0]
[null,null,null,null,null,null,null,null,null,null,null,null,null,null,null,null,null,null,null,null,0]
[null,null,null,null,null,null,null,null,null,null,null,null,null,null,null,null,null,null,null,null,0]
[null,null,null,null,null,null,null,null,null,null,null,null,null,null,null,null,null,null,null,null,0]
[null,null,null,null,null,null,null,null,null,null,null,null,null,null,null,null,null,null,null,null,0]
[null,null,null,null,null,null,null,null,null,null,null,null,null,null,null,null,null,null,null,null,0]
[null,null,null,null,null,null,null,null,null,null,null,null,null,null,null,null,null,null,null,null,0]
[null,null,null,null,null,null,null,null,null,null,null,null,null,null,null,null,null,null,null,null,0]
[null,null,null,null,null,null,null,null,null,null,null,null,null,null,null,null,null,null,null,null,0]
[null,null,null,null,null,null,null,null,null,null,null,null,null,null,null,null,null,null,null,null,0]
[null,null,null,null,null,null,null,null,null,null,null,null,null,null,null,null,null,null,null,null,0]
[null,null,null,null,null,null,null,null,null,null,null,null,null,null,null,null,null,null,null,null,0]
[null,null,null,null,null,null,null,null,null,null,null,null,null,null,null,null,null,null,null,null,0]
[null,null,null,null,null,null,null,null,null,null,null,null,null,null,null,null,null,null,null,null,0]
[null,null,null,null,null,null,null,null,null,null,null,null,null,null,null,null,null,null,null,null,0]
[null,null,null,null,null,null,null,null,null,null,null,null,null,null,null,null,null,null,null,null,0]
[null,null,null,null,null,null,null,null,null,null,null,null,null,null,null,null,null,null,null,null,0]
[null,null,null,null,null,null,null,null,null,null,null,null,null,null,null,null,null,null,null,null,0]
[null,null,null,null,null,null,null,null,null,null,null,null,null,null,null,null,null,null,null,null,0]
[null,null,null,null,null,null,null,null,null,null,null,null,null,null,null,null,null,null,null,null,0]
[null,null,null,null,null,null,null,null,null,null,null,null,null,null,null,null,null,null,null,null,0]
[null,null,null,null,null,null,null,null,null,null,null,null,null,null,null,null,null,null,null,null,0]
[null,null,null,null,null,null,null,null,null,null,null,null,null,null,null,null,null,null,null,null,0]
[null,null,null,null,null,null,null,null,null,null,null,null,null,null,null,null,null,null,null,null,0]
[null,null,null,null,null,null,null,null,null,null,null,null,null,null,null,null,null,null,null,null,0]
[null,null,null,null,null,null,null,null,null,null,null,null,null,null,null,null,null,null,null,null,0]
[null,null,null,null,null,null,null,null,null,null,null,null,null,null,null,null,null,null,null,null,0]
[null,null,null,null,null,null,null,null,null,null,null,null,null,null,null,null,null,null,null,null,0]
[null,null,null,null,null,null,null,null,null,null,null,null,null,null,null,null,null,null,null,null,0]
[null,null,null,null,null,null,null,null,null,null,null,null,null,null,null,null,null,null,null,null,0]
[null,null,null,null,null,null,null,null,null,null,null,null,null,null,null,null,null,null,null,null,0]
[null,null,null,null,null,null,null,null,null,null,null,null,null,null,null,null,null,null,null,null,0]
[null,null,null,null,null,null,null,null,null,null,null,null,null,null,null,null,null,null,null,null,0]
[null,null,null,null,null,null,null,null,null,null,null,null,null,null,null,null,null,null,null,null,0]
[null,null,null,null,null,null,null,null,null,null,null,null,null,null,null,null,null,null,null,null,0]
[null,null,null,null,null,null,null,null,null,null,null,null,null,null,null,null,null,null,null,null,0]
[null,null,null,null,null,null,null,null,null,null,null,null,null,null,null,null,null,null,null,null,0]
[null,null,null,null,null,null,null,null,null,null,null,null,null,null,null,null,null,null,null,null,{"$f":"I837+K837+M837+O837+Q837","v":0}]
[null,null,null,null,null,null,null,null,null,null,null,null,null,null,null,null,null,null,null,null,0]
[null,null,null,null,null,null,null,null,null,null,null,null,null,null,null,null,null,null,null,null,0]
[null,null,null,null,null,null,null,null,null,null,null,null,null,null,null,null,null,null,null,null,0]
[null,null,null,null,null,null,null,null,null,null,null,null,null,null,null,null,null,null,null,null,0]
[null,null,null,null,null,null,null,null,null,null,null,null,null,null,null,null,null,null,null,null,0]
[null,null,null,null,null,null,null,null,null,null,null,null,null,null,null,null,null,null,null,null,0]
[null,null,null,null,null,null,null,null,null,null,null,null,null,null,null,null,null,null,null,null,0]
[null,null,null,null,null,null,null,null,null,null,null,null,null,null,null,null,null,null,null,null,0]
[null,null,null,null,null,null,null,null,null,null,null,null,null,null,null,null,null,null,null,null,0]
[null,null,null,null,null,null,null,null,null,null,null,null,null,null,null,null,null,null,null,null,0]
[null,null,null,null,null,null,null,null,null,null,null,null,null,null,null,null,null,null,null,null,0]
[null,null,null,null,null,null,null,null,null,null,null,null,null,null,null,null,null,null,null,null,0]
[null,null,null,null,null,null,null,null,null,null,null,null,null,null,null,null,null,null,null,null,0]
[null,null,null,null,null,null,null,null,null,null,null,null,null,null,null,null,null,null,null,null,0]
[null,null,null,null,null,null,null,null,null,null,null,null,null,null,null,null,null,null,null,null,0]
[null,null,null,null,null,null,null,null,null,null,null,null,null,null,null,null,null,null,null,null,0]
[null,null,null,null,null,null,null,null,null,null,null,null,null,null,null,null,null,null,null,null,0]
[null,null,null,null,null,null,null,null,null,null,null,null,null,null,null,null,null,null,null,null,0]
[null,null,null,null,null,null,null,null,null,null,null,null,null,null,null,null,null,null,null,null,0]
[null,null,null,null,null,null,null,null,null,null,null,null,null,null,null,null,null,null,null,null,0]
[null,null,null,null,null,null,null,null,null,null,null,null,null,null,null,null,null,null,null,null,0]
[null,null,null,null,null,null,null,null,null,null,null,null,null,null,null,null,null,null,null,null,0]
[null,null,null,null,null,null,null,null,null,null,null,null,null,null,null,null,null,null,null,null,0]
[null,null,null,null,null,null,null,null,null,null,null,null,null,null,null,null,null,null,null,null,0]
[null,null,null,null,null,null,null,null,null,null,null,null,null,null,null,null,null,null,null,null,0]
[null,null,null,null,null,null,null,null,null,null,null,null,null,null,null,null,null,null,null,null,0]
[null,null,null,null,null,null,null,null,null,null,null,null,null,null,null,null,null,null,null,null,0]
[null,null,null,null,null,null,null,null,null,null,null,null,null,null,null,null,null,null,null,null,0]
[null,null,null,null,null,null,null,null,null,null,null,null,null,null,null,null,null,null,null,null,0]
[null,null,null,null,null,null,null,null,null,null,null,null,null,null,null,null,null,null,null,null,0]
[null,null,null,null,null,null,null,null,null,null,null,null,null,null,null,null,null,null,null,null,0]
[null,null,null,null,null,null,null,null,null,null,null,null,null,null,null,null,null,null,null,null,0]
[null,null,null,null,null,null,null,null,null,null,null,null,null,null,null,null,null,null,null,null,0]
[null,null,null,null,null,null,null,null,null,null,null,null,null,null,null,null,null,null,null,null,0]
[null,null,null,null,null,null,null,null,null,null,null,null,null,null,null,null,null,null,null,null,0]
[null,null,null,null,null,null,null,null,null,null,null,null,null,null,null,null,null,null,null,null,0]
[null,null,null,null,null,null,null,null,null,null,null,null,null,null,null,null,null,null,null,null,0]
[null,null,null,null,null,null,null,null,null,null,null,null,null,null,null,null,null,null,null,null,0]
[null,null,null,null,null,null,null,null,null,null,null,null,null,null,null,null,null,null,null,null,0]
[null,null,null,null,null,null,null,null,null,null,null,null,null,null,null,null,null,null,null,null,0]
[null,null,null,null,null,null,null,null,null,null,null,null,null,null,null,null,null,null,null,null,0]
[null,null,null,null,null,null,null,null,null,null,null,null,null,null,null,null,null,null,null,null,0]
[null,null,null,null,null,null,null,null,null,null,null,null,null,null,null,null,null,null,null,null,0]
[null,null,null,null,null,null,null,null,null,null,null,null,null,null,null,null,null,null,null,null,0]
[null,null,null,null,null,null,null,null,null,null,null,null,null,null,null,null,null,null,null,null,0]
[null,null,null,null,null,null,null,null,null,null,null,null,null,null,null,null,null,null,null,null,0]
[null,null,null,null,null,null,null,null,null,null,null,null,null,null,null,null,null,null,null,null,0]
[null,null,null,null,null,null,null,null,null,null,null,null,null,null,null,null,null,null,null,null,0]
[null,null,null,null,null,null,null,null,null,null,null,null,null,null,null,null,null,null,null,null,0]
[null,null,null,null,null,null,null,null,null,null,null,null,null,null,null,null,null,null,null,null,0]
[null,null,null,null,null,null,null,null,null,null,null,null,null,null,null,null,null,null,null,null,0]
[null,null,null,null,null,null,null,null,null,null,null,null,null,null,null,null,null,null,null,null,0]
[null,null,null,null,null,null,null,null,null,null,null,null,null,null,null,null,null,null,null,null,0]
[null,null,null,null,null,null,null,null,null,null,null,null,null,null,null,null,null,null,null,null,0]
[null,null,null,null,null,null,null,null,null,null,null,null,null,null,null,null,null,null,null,null,0]
[null,null,null,null,null,null,null,null,null,null,null,null,null,null,null,null,null,null,null,null,0]
[null,null,null,null,null,null,null,null,null,null,null,null,null,null,null,null,null,null,null,null,0]
[null,null,null,null,null,null,null,null,null,null,null,null,null,null,null,null,null,null,null,null,0]
[null,null,null,null,null,null,null,null,null,null,null,null,null,null,null,null,null,null,null,null,0]
[null,null,null,null,null,null,null,null,null,null,null,null,null,null,null,null,null,null,null,null,0]
[null,null,null,null,null,null,null,null,null,null,null,null,null,null,null,null,null,null,null,null,0]
[null,null,null,null,null,null,null,null,null,null,null,null,null,null,null,null,null,null,null,null,0]
[null,null,null,null,null,null,null,null,null,null,null,null,null,null,null,null,null,null,null,null,0]
[null,null,null,null,null,null,null,null,null,null,null,null,null,null,null,null,null,null,null,null,{"$f":"I901+K901+M901+O901+Q901","v":0}]
[null,null,null,null,null,null,null,null,null,null,null,null,null,null,null,null,null,null,null,null,0]
[null,null,null,null,null,null,null,null,null,null,null,null,null,null,null,null,null,null,null,null,0]
[null,null,null,null,null,null,null,null,null,null,null,null,null,null,null,null,null,null,null,null,0]
[null,null,null,null,null,null,null,null,null,null,null,null,null,null,null,null,null,null,null,null,0]
[null,null,null,null,null,null,null,null,null,null,null,null,null,null,null,null,null,null,null,null,0]
[null,null,null,null,null,null,null,null,null,null,null,null,null,null,null,null,null,null,null,null,0]
[null,null,null,null,null,null,null,null,null,null,null,null,null,null,null,null,null,null,null,null,0]
[null,null,null,null,null,null,null,null,null,null,null,null,null,null,null,null,null,null,null,null,0]
[null,null,null,null,null,null,null,null,null,null,null,null,null,null,null,null,null,null,null,null,0]
[null,null,null,null,null,null,null,null,null,null,null,null,null,null,null,null,null,null,null,null,0]
[null,null,null,null,null,null,null,null,null,null,null,null,null,null,null,null,null,null,null,null,0]
[null,null,null,null,null,null,null,null,null,null,null,null,null,null,null,null,null,null,null,null,0]
[null,null,null,null,null,null,null,null,null,null,null,null,null,null,null,null,null,null,null,null,0]
[null,null,null,null,null,null,null,null,null,null,null,null,null,null,null,null,null,null,null,null,0]
[null,null,null,null,null,null,null,null,null,null,null,null,null,null,null,null,null,null,null,null,0]
[null,null,null,null,null,null,null,null,null,null,null,null,null,null,null,null,null,null,null,null,0]
[null,null,null,null,null,null,null,null,null,null,null,null,null,null,null,null,null,null,null,null,0]
[null,null,null,null,null,null,null,null,null,null,null,null,null,null,null,null,null,null,null,null,0]
[null,null,null,null,null,null,null,null,null,null,null,null,null,null,null,null,null,null,null,null,0]
[null,null,null,null,null,null,null,null,null,null,null,null,null,null,null,null,null,null,null,null,0]
[null,null,null,null,null,null,null,null,null,null,null,null,null,null,null,null,null,null,null,null,0]
[null,null,null,null,null,null,null,null,null,null,null,null,null,null,null,null,null,null,null,null,0]
[null,null,null,null,null,null,null,null,null,null,null,null,null,null,null,null,null,null,null,null,0]
[null,null,null,null,null,null,null,null,null,null,null,null,null,null,null,null,null,null,null,null,0]
[null,null,null,null,null,null,null,null,null,null,null,null,null,null,null,null,null,null,null,null,0]
[null,null,null,null,null,null,null,null,null,null,null,null,null,null,null,null,null,null,null,null,0]
[null,null,null,null,null,null,null,null,null,null,null,null,null,null,null,null,null,null,null,null,0]
[null,null,null,null,null,null,null,null,null,null,null,null,null,null,null,null,null,null,null,null,0]
[null,null,null,null,null,null,null,null,null,null,null,null,null,null,null,null,null,null,null,null,0]
[null,null,null,null,null,null,null,null,null,null,null,null,null,null,null,null,null,null,null,null,0]
[null,null,null,null,null,null,null,null,null,null,null,null,null,null,null,null,null,null,null,null,0]
[null,null,null,null,null,null,null,null,null,null,null,null,null,null,null,null,null,null,null,null,0]
[null,null,null,null,null,null,null,null,null,null,null,null,null,null,null,null,null,null,null,null,0]
[null,null,null,null,null,null,null,null,null,null,null,null,null,null,null,null,null,null,null,null,0]
[null,null,null,null,null,null,null,null,null,null,null,null,null,null,null,null,null,null,null,null,0]
[null,null,null,null,null,null,null,null,null,null,null,null,null,null,null,null,null,null,null,null,0]
[null,null,null,null,null,null,null,null,null,null,null,null,null,null,null,null,null,null,null,null,0]
[null,null,null,null,null,null,null,null,null,null,null,null,null,null,null,null,null,null,null,null,0]
[null,null,null,null,null,null,null,null,null,null,null,null,null,null,null,null,null,null,null,null,0]
[null,null,null,null,null,null,null,null,null,null,null,null,null,null,null,null,null,null,null,null,0]
[null,null,null,null,null,null,null,null,null,null,null,null,null,null,null,null,null,null,null,null,0]
[null,null,null,null,null,null,null,null,null,null,null,null,null,null,null,null,null,null,null,null,0]
[null,null,null,null,null,null,null,null,null,null,null,null,null,null,null,null,null,null,null,null,0]
[null,null,null,null,null,null,null,null,null,null,null,null,null,null,null,null,null,null,null,null,0]
[null,null,null,null,null,null,null,null,null,null,null,null,null,null,null,null,null,null,null,null,0]
[null,null,null,null,null,null,null,null,null,null,null,null,null,null,null,null,null,null,null,null,0]
[null,null,null,null,null,null,null,null,null,null,null,null,null,null,null,null,null,null,null,null,0]
[null,null,null,null,null,null,null,null,null,null,null,null,null,null,null,null,null,null,null,null,0]
[null,null,null,null,null,null,null,null,null,null,null,null,null,null,null,null,null,null,null,null,0]
[null,null,null,null,null,null,null,null,null,null,null,null,null,null,null,null,null,null,null,null,0]
[null,null,null,null,null,null,null,null,null,null,null,null,null,null,null,null,null,null,null,null,0]
[null,null,null,null,null,null,null,null,null,null,null,null,null,null,null,null,null,null,null,null,0]
[null,null,null,null,null,null,null,null,null,null,null,null,null,null,null,null,null,null,null,null,0]
[null,null,null,null,null,null,null,null,null,null,null,null,null,null,null,null,null,null,null,null,0]
[null,null,null,null,null,null,null,null,null,null,null,null,null,null,null,null,null,null,null,null,0]
[null,null,null,null,null,null,null,null,null,null,null,null,null,null,null,null,null,null,null,null,0]
[null,null,null,null,null,null,null,null,null,null,null,null,null,null,null,null,null,null,null,null,0]
[null,null,null,null,null,null,null,null,null,null,null,null,null,null,null,null,null,null,null,null,0]
[null,null,null,null,null,null,null,null,null,null,null,null,null,null,null,null,null,null,null,null,0]
[null,null,null,null,null,null,null,null,null,null,null,null,null,null,null,null,null,null,null,null,0]
[null,null,null,null,null,null,null,null,null,null,null,null,null,null,null,null,null,null,null,null,0]
[null,null,null,null,null,null,null,null,null,null,null,null,null,null,null,null,null,null,null,null,0]
[null,null,null,null,null,null,null,null,null,null,null,null,null,null,null,null,null,null,null,null,0]
[null,null,null,null,null,null,null,null,null,null,null,null,null,null,null,null,null,null,null,null,{"$f":"I965+K965+M965+O965+Q965","v":0}]
[null,null,null,null,null,null,null,null,null,null,null,null,null,null,null,null,null,null,null,null,0]
[null,null,null,null,null,null,null,null,null,null,null,null,null,null,null,null,null,null,null,null,0]
[null,null,null,null,null,null,null,null,null,null,null,null,null,null,null,null,null,null,null,null,0]
[null,null,null,null,null,null,null,null,null,null,null,null,null,null,null,null,null,null,null,null,0]
[null,null,null,null,null,null,null,null,null,null,null,null,null,null,null,null,null,null,null,null,0]
[null,null,null,null,null,null,null,null,null,null,null,null,null,null,null,null,null,null,null,null,0]
[null,null,null,null,null,null,null,null,null,null,null,null,null,null,null,null,null,null,null,null,0]
[null,null,null,null,null,null,null,null,null,null,null,null,null,null,null,null,null,null,null,null,0]
[null,null,null,null,null,null,null,null,null,null,null,null,null,null,null,null,null,null,null,null,0]
[null,null,null,null,null,null,null,null,null,null,null,null,null,null,null,null,null,null,null,null,0]
[null,null,null,null,null,null,null,null,null,null,null,null,null,null,null,null,null,null,null,null,0]
[null,null,null,null,null,null,null,null,null,null,null,null,null,null,null,null,null,null,null,null,0]
[null,null,null,null,null,null,null,null,null,null,null,null,null,null,null,null,null,null,null,null,0]
[null,null,null,null,null,null,null,null,null,null,null,null,null,null,null,null,null,null,null,null,0]
[null,null,null,null,null,null,null,null,null,null,null,null,null,null,null,null,null,null,null,null,0]
[null,null,null,null,null,null,null,null,null,null,null,null,null,null,null,null,null,null,null,null,0]
[null,null,null,null,null,null,null,null,null,null,null,null,null,null,null,null,null,null,null,null,0]
[null,null,null,null,null,null,null,null,null,null,null,null,null,null,null,null,null,null,null,null,0]
[null,null,null,null,null,null,null,null,null,null,null,null,null,null,null,null,null,null,null,null,0]
[null,null,null,null,null,null,null,null,null,null,null,null,null,null,null,null,null,null,null,null,0]
[null,null,null,null,null,null,null,null,null,null,null,null,null,null,null,null,null,null,null,null,0]
[null,null,null,null,null,null,null,null,null,null,null,null,null,null,null,null,null,null,null,null,0]
[null,null,null,null,null,null,null,null,null,null,null,null,null,null,null,null,null,null,null,null,0]
[null,null,null,null,null,null,null,null,null,null,null,null,null,null,null,null,null,null,null,null,0]
[null,null,null,null,null,null,null,null,null,null,null,null,null,null,null,null,null,null,null,null,0]
[null,null,null,null,null,null,null,null,null,null,null,null,null,null,null,null,null,null,null,null,0]
[null,null,null,null,null,null,null,null,null,null,null,null,null,null,null,null,null,null,null,null,0]
[null,null,null,null,null,null,null,null,null,null,null,null,null,null,null,null,null,null,null,null,0]
[null,null,null,null,null,null,null,null,null,null,null,null,null,null,null,null,null,null,null,null,0]
[null,null,null,null,null,null,null,null,null,null,null,null,null,null,null,null,null,null,null,null,0]
[null,null,null,null,null,null,null,null,null,null,null,null,null,null,null,null,null,null,null,null,0]
[null,null,null,null,null,null,null,null,null,null,null,null,null,null,null,null,null,null,null,null,0]
[null,null,null,null,null,null,null,null,null,null,null,null,null,null,null,null,null,null,null,null,0]

{"sheet":"Medewerkers","index":3,"n_rows":9,"n_cols":388,"rows_kept":9,"cut":false,"hidden":false,"merged":[[5,336,5,337],[6,188,6,191],[4,75,5,76],[4,127,5,128],[4,6,5,7],[4,23,5,24],[5,179,5,180],[5,231,5,232],[5,284,5,285]]}
[null,null,null,null,null,null,202136,202137,202138,202139,202140,202141,202142,202143,202144,202145,202146,202147,202148,202149,202150,202151,202152,202201,202202,202203,202204,202205,202206,202207,202208,202209,202210,202211,202212,202213,202214,202215,202216,202217,202218,202219,202220,202221,202222,202223,202224,202225,202226,202227,202228,202229,202230,202231,202232,202233,202234,202235,202236,202237,202238,202239,202240,202241,202242,202243,202244,202245,202246,202247,202248,202249,202250,202251,202252,202301,202302,202303,202304,202305,202306,202307,202308,202309,202310,202311,202312,202313,202314,202315,202316,202317,202318,202319,202320,202321,202322,202323,202324,202325,202326,202327,202328,202329,202330,202331,202332,202333,202334,202335,202336,202337,202338,202339,202340,202341,202342,202343,202344,202345,202346,202347,202348,202349,202350,202351,202352,202401,202402,202403,202404,202405,202406,202407,202408,202409,202410,202411,202412,202413,202414,202415,202416,202417,202418,202419,202420,202421,202422,202423,202424,202425,202426,202427,202428,202429,202430,202431,202432,202433,202434,202435,202436,202437,202438,202439,202440,202441,202442,202443,202444,202445,202446,202447,202448,202449,202450,202451,202452,202501,202502,202503,202504,202505,202506,202507,202508,202509,202510,202511,202512,202513,202514,202515,202516,202517,202518,202519,202520,202521,202522,202523,202524,202525,202526,202527,202528,202529,202530,202531,202532,202533,202534,202535,202536,202537,202538,202539,202540,202541,202542,202543,202544,202545,202546,202547,202548,202549,202550,202551,202552,202601,202602,202603,202604,202605,202606,202607,202608,202609,202610,202611,202612,202613,202614,202615,202616,202617,202618,202619,202620,202621,202622,202623,202624,202625,202626,202627,202628,202629,202630,202631,202632,202633,202634,202635,202636,202637,202638,202639,202640,202641,202642,202643,202644,202645,202646,202647,202648,202649,202650,202651,202652,202653,202701,202702,202703,202704,202705,202706,202707,202708,202709,202710,202711,202712,202713,202714,202715,202716,202717,202718,202719,202720,202721,202722,202723,202724,202725,202726,202727,202728,202729,202730,202731,202732,202733,202734,202735,202736,202737,202738,202739,202740,202741,202742,202743,202744,202745,202746,202747,202748,202749,202750,202751,202752,202801,202802,202803,202804,202805,202806,202807,202808,202809,202810,202811,202812,202813,202814,202815,202816,202817,202818,202819,202820,202821,202822,202823,202824,202825,202826,202827,202828,202829,202830,202831,202832,202833,202834,202835,202836,202837,202838,202839,202840,202841,202842,202843,202844,202845,202846,202847,202848,202849,202850,202851,202852]
[]
[null,"Medewerker:"]
[null,"Tonen in kalender:",2024]
[null,null,null,null,null,null,2021,null,null,null,null,null,null,null,null,null,null,null,null,null,null,null,null,2022,null,null,null,null,null,null,null,null,null,null,null,null,null,null,null,null,null,null,null,null,null,null,null,null,null,null,null,null,null,null,null,null,null,null,null,null,null,null,null,null,null,null,null,null,null,null,null,null,null,null,null,2023,null,null,null,null,null,null,null,null,null,null,null,null,null,null,null,null,null,null,null,null,null,null,null,null,null,null,null,null,null,null,null,null,null,null,null,null,null,null,null,null,null,null,null,null,null,null,null,null,null,null,null,2024]
[null,null,null,null,null,null,null,null,null,null,null,null,null,null,null,null,null,null,null,null,null,null,null,null,null,null,null,null,null,null,null,null,null,null,null,null,null,null,null,null,null,null,null,null,null,null,null,null,null,null,null,null,null,null,null,null,null,null,null,null,null,null,null,null,null,null,null,null,null,null,null,null,null,null,null,null,null,null,null,null,null,null,null,null,null,null,null,null,null,null,null,null,null,null,null,null,null,null,null,null,null,null,null,null,null,null,null,null,null,null,null,null,null,null,null,null,null,null,null,null,null,null,null,null,null,null,null,null,null,null,null,null,null,null,null,null,null,null,null,null,null,null,null,null,null,null,null,null,null,null,null,null,null,null,null,null,null,null,null,null,null,null,null,null,null,null,null,null,null,null,null,null,null,null,null,null,null,null,null,2025,null,null,null,null,null,null,null,null,null,null,null,null,null,null,null,null,null,null,null,null,null,null,null,null,null,null,null,null,null,null,null,null,null,null,null,null,null,null,null,null,null,null,null,null,null,null,null,null,null,null,null,2026,null,null,null,null,null,null,null,null,null,null,null,null,null,null,null,null,null,null,null,null,null,null,null,null,null,null,null,null,null,null,null,null,null,null,null,null,null,null,null,null,null,null,null,null,null,null,null,null,null,null,null,null,2027,null,null,null,null,null,null,null,null,null,null,null,null,null,null,null,null,null,null,null,null,null,null,null,null,null,null,null,null,null,null,null,null,null,null,null,null,null,null,null,null,null,null,null,null,null,null,null,null,null,null,null,2028]
[null,null,null,null,null,null,"September",null,null,null,"Oktober",null,null,null,"November",null,null,null,null,"December",null,null,null,"Januari",null,null,null,"Februari",null,null,null,"Maart",null,null,null,null,"April",null,null,null,"Mei",null,null,null,null,"Juni",null,null,null,"Juli",null,null,null,"Augustus",null,null,null,null,"September",null,null,null,"Oktober",null,null,null,"November",null,null,null,null,"December",null,null,null,"Januari",null,null,null,null,"Februari",null,null,null,"Maart",null,null,null,"April",null,null,null,"Mei",null,null,null,null,"Juni",null,null,{"$f":"IF(MONTH(CX8+4)<>MONTH(CW8+4),MONTH(CX8+4),\"\")","v":""},"Juli",null,null,null,"Augustus",null,null,null,null,"September",null,null,null,"Oktober",null,null,null,null,"November",null,null,null,"December",null,null,null,"Januari",null,null,null,null,"Februari",null,null,null,"Maart",null,null,null,"April",null,null,null,null,"Mei",null,null,null,"Juni",null,null,null,"Juli",null,null,null,null,"Augustus",null,null,null,"September",null,null,null,"Oktober",null,null,null,null,"November",null,null,null,"December",null,null,null,"Januari",null,null,null,null,"Februari",null,null,null,"Maart",null,null,null,"April",null,null,null,null,"Mei",null,null,null,"Juni",null,null,null,"Juli",null,null,null,null,"Augustus",null,null,null,"September",null,null,null,"Oktober",null,null,null,null,"November",null,null,null,"December",null,null,null,"Januari",null,null,null,null,"Februari",null,null,null,"Maart",null,null,null,"April",null,null,null,null,"Mei",null,null,null,"Juni",null,null,null,"Juli",null,null,null,null,"Augustus",null,null,null,"September",null,null,null,"Oktober",null,null,null,null,"November",null,null,null,"December",null,null,null,null,"Januari",null,null,null,null,"Februari",null,null,null,"Maart",null,null,null,"April",null,null,null,null,"Mei",null,null,null,"Juni",null,null,null,"Juli",null,null,null,null,"Augustus",null,null,null,"September",null,null,null,"Oktober",null,null,null,null,"November",null,null,null,"December",null,null,null,"Januari",null,null,null,null,"Februari",null,null,null,"Maart",null,null,null,"April",null,null,null,null,"Mei",null,null,null,"Juni",null,null,null,"Juli",null,null,null,null,"Augustus",null,null,null,"September",null,null,null,"Oktober",null,null,null,null,"November",null,null,null,"December"]
[null,null,null,null,null,null,"2021-09-07",{"$f":"G8+7","v":"2021-09-14"},"2021-09-21","2021-09-28","2021-10-05","2021-10-12","2021-10-19","2021-10-26","2021-11-02","2021-11-09","2021-11-16","2021-11-23","2021-11-30","2021-12-07","2021-12-14","2021-12-21","2021-12-28","2022-01-04","2022-01-11","2022-01-18","2022-01-25","2022-02-01","2022-02-08","2022-02-15","2022-02-22","2022-03-01","2022-03-08","2022-03-15","2022-03-22","2022-03-29","2022-04-05","2022-04-12","2022-04-19","2022-04-26","2022-05-03","2022-05-10","2022-05-17","2022-05-24","2022-05-31","2022-06-07","2022-06-14","2022-06-21","2022-06-28","2022-07-05","2022-07-12","2022-07-19","2022-07-26","2022-08-02","2022-08-09","2022-08-16","2022-08-23","2022-08-30","2022-09-06","2022-09-13","2022-09-20","2022-09-27","2022-10-04","2022-10-11","2022-10-18","2022-10-25","2022-11-01","2022-11-08","2022-11-15","2022-11-22","2022-11-29",{"$f":"BS8+7","v":"2022-12-06"},"2022-12-13","2022-12-20","2022-12-27","2023-01-03","2023-01-10","2023-01-17","2023-01-24","2023-01-31","2023-02-07","2023-02-14","2023-02-21","2023-02-28","2023-03-07","2023-03-14","2023-03-21","2023-03-28","2023-04-04","2023-04-11","2023-04-18","2023-04-25","2023-05-02","2023-05-09","2023-05-16","2023-05-23","2023-05-30","2023-06-06","2023-06-13","2023-06-20","2023-06-27","2023-07-04","2023-07-11","2023-07-18","2023-07-25","2023-08-01","2023-08-08","2023-08-15","2023-08-22","2023-08-29","2023-09-05","2023-09-12","2023-09-19","2023-09-26","2023-10-03","2023-10-10","2023-10-17","2023-10-24","2023-10-31","2023-11-07","2023-11-14","2023-11-21","2023-11-28","2023-12-05","2023-12-12","2023-12-19","2023-12-26","2024-01-02","2024-01-09","2024-01-16","2024-01-23","2024-01-30","2024-02-06","2024-02-13","2024-02-20",{"$f":"EE8+7","v":"2024-02-27"},"2024-03-05","2024-03-12","2024-03-19","2024-03-26","2024-04-02","2024-04-09","2024-04-16","2024-04-23","2024-04-30","2024-05-07","2024-05-14","2024-05-21","2024-05-28","2024-06-04","2024-06-11","2024-06-18","2024-06-25","2024-07-02","2024-07-09","2024-07-16","2024-07-23","2024-07-30","2024-08-06","2024-08-13","2024-08-20","2024-08-27","2024-09-03","2024-09-10","2024-09-17","2024-09-24","2024-10-01","2024-10-08","2024-10-15","2024-10-22","2024-10-29","2024-11-05","2024-11-12","2024-11-19","2024-11-26","2024-12-03","2024-12-10","2024-12-17","2024-12-24",{"$f":"FW8+7","v":"2024-12-31"},{"$f":"FX8+7","v":"2025-01-07"},{"$f":"FY8+7","v":"2025-01-14"},{"$f":"FZ8+7","v":"2025-01-21"},{"$f":"GA8+7","v":"2025-01-28"},{"$f":"GB8+7","v":"2025-02-04"},{"$f":"GC8+7","v":"2025-02-11"},{"$f":"GD8+7","v":"2025-02-18"},{"$f":"GE8+7","v":"2025-02-25"},{"$f":"GF8+7","v":"2025-03-04"},{"$f":"GG8+7","v":"2025-03-11"},{"$f":"GH8+7","v":"2025-03-18"},{"$f":"GI8+7","v":"2025-03-25"},{"$f":"GJ8+7","v":"2025-04-01"},{"$f":"GK8+7","v":"2025-04-08"},{"$f":"GL8+7","v":"2025-04-15"},{"$f":"GM8+7","v":"2025-04-22"},{"$f":"GN8+7","v":"2025-04-29"},{"$f":"GO8+7","v":"2025-05-06"},{"$f":"GP8+7","v":"2025-05-13"},{"$f":"GQ8+7","v":"2025-05-20"},{"$f":"GR8+7","v":"2025-05-27"},{"$f":"GS8+7","v":"2025-06-03"},{"$f":"GT8+7","v":"2025-06-10"},{"$f":"GU8+7","v":"2025-06-17"},{"$f":"GV8+7","v":"2025-06-24"},{"$f":"GW8+7","v":"2025-07-01"},{"$f":"GX8+7","v":"2025-07-08"},{"$f":"GY8+7","v":"2025-07-15"},{"$f":"GZ8+7","v":"2025-07-22"},{"$f":"HA8+7","v":"2025-07-29"},{"$f":"HB8+7","v":"2025-08-05"},{"$f":"HC8+7","v":"2025-08-12"},{"$f":"HD8+7","v":"2025-08-19"},{"$f":"HE8+7","v":"2025-08-26"},{"$f":"HF8+7","v":"2025-09-02"},{"$f":"HG8+7","v":"2025-09-09"},{"$f":"HH8+7","v":"2025-09-16"},{"$f":"HI8+7","v":"2025-09-23"},{"$f":"HJ8+7","v":"2025-09-30"},{"$f":"HK8+7","v":"2025-10-07"},{"$f":"HL8+7","v":"2025-10-14"},{"$f":"HM8+7","v":"2025-10-21"},{"$f":"HN8+7","v":"2025-10-28"},{"$f":"HO8+7","v":"2025-11-04"},{"$f":"HP8+7","v":"2025-11-11"},{"$f":"HQ8+7","v":"2025-11-18"},{"$f":"HR8+7","v":"2025-11-25"},{"$f":"HS8+7","v":"2025-12-02"},{"$f":"HT8+7","v":"2025-12-09"},{"$f":"HU8+7","v":"2025-12-16"},{"$f":"HV8+7","v":"2025-12-23"},"2025-12-30","2026-01-06","2026-01-13","2026-01-20","2026-01-27","2026-02-03","2026-02-10","2026-02-17","2026-02-24","2026-03-03","2026-03-10","2026-03-17","2026-03-24","2026-03-31","2026-04-07","2026-04-14","2026-04-21","2026-04-28","2026-05-05","2026-05-12","2026-05-19","2026-05-26","2026-06-02","2026-06-09","2026-06-16","2026-06-23","2026-06-30","2026-07-07","2026-07-14","2026-07-21","2026-07-28","2026-08-04","2026-08-11","2026-08-18","2026-08-25","2026-09-01","2026-09-08","2026-09-15","2026-09-22","2026-09-29","2026-10-06","2026-10-13","2026-10-20","2026-10-27","2026-11-03","2026-11-10","2026-11-17","2026-11-24","2026-12-01","2026-12-08","2026-12-15","2026-12-22","2026-12-29","2027-01-05","2027-01-12","2027-01-19","2027-01-26","2027-02-02","2027-02-09","2027-02-16","2027-02-23","2027-03-02","2027-03-09",{"$f":"KH8+7","v":"2027-03-16"},"2027-03-23","2027-03-30","2027-04-06","2027-04-13","2027-04-20","2027-04-27","2027-05-04","2027-05-11","2027-05-18","2027-05-25","2027-06-01","2027-06-08","2027-06-15","2027-06-22","2027-06-29","2027-07-06","2027-07-13","2027-07-20","2027-07-27","2027-08-03","2027-08-10","2027-08-17","2027-08-24","2027-08-31","2027-09-07","2027-09-14","2027-09-21","2027-09-28","2027-10-05","2027-10-12","2027-10-19","2027-10-26","2027-11-02","2027-11-09","2027-11-16","2027-11-23","2027-11-30","2027-12-07","2027-12-14","2027-12-21","2027-12-28","2028-01-04","2028-01-11","2028-01-18","2028-01-25","2028-02-01","2028-02-08","2028-02-15","2028-02-22","2028-02-29","2028-03-07","2028-03-14","2028-03-21","2028-03-28","2028-04-04","2028-04-11","2028-04-18","2028-04-25","2028-05-02","2028-05-09","2028-05-16","2028-05-23","2028-05-30",{"$f":"MT8+7","v":"2028-06-06"},"2028-06-13","2028-06-20","2028-06-27","2028-07-04","2028-07-11","2028-07-18","2028-07-25","2028-08-01","2028-08-08","2028-08-15","2028-08-22","2028-08-29","2028-09-05","2028-09-12","2028-09-19","2028-09-26","2028-10-03","2028-10-10","2028-10-17","2028-10-24","2028-10-31","2028-11-07","2028-11-14","2028-11-21","2028-11-28","2028-12-05","2028-12-12","2028-12-19","2028-12-26"]
[null,"Medewerker","Projectnaam","Startdatum (week)","Einddatum (week)","Aantal uren",{"$f":"WEEKNUM(G8,21)","v":36},37,38,39,40,41,42,43,44,45,46,47,48,49,50,51,52,1,2,3,4,5,6,7,8,9,10,11,12,13,14,15,16,17,18,19,20,21,22,23,24,25,26,27,28,29,30,31,32,33,34,35,36,37,38,39,40,41,42,43,44,45,46,47,{"$f":"WEEKNUM(BS8,21)","v":48},49,50,51,52,1,2,3,4,5,6,7,8,9,10,11,12,13,14,15,16,17,18,19,20,21,22,23,24,25,26,27,28,29,30,31,32,33,34,35,36,37,38,39,40,41,42,43,44,45,46,47,48,49,50,51,52,1,2,3,4,5,6,7,{"$f":"WEEKNUM(EE8,21)","v":8},9,10,11,12,13,14,15,16,17,18,19,20,21,22,23,24,25,26,27,28,29,30,31,32,33,34,35,36,37,38,39,40,41,42,43,44,45,46,47,48,49,50,51,52,1,2,3,4,5,6,7,8,9,10,11,12,13,14,15,16,17,18,19,20,21,22,23,24,25,26,27,28,29,30,31,32,33,34,35,36,37,38,39,40,41,42,43,44,45,46,47,48,49,50,51,52,{"$f":"WEEKNUM(HX8,21)","v":1},2,3,4,5,6,7,8,9,10,11,12,13,14,15,16,17,18,19,20,21,22,23,24,25,26,27,28,29,30,31,32,33,34,35,36,37,38,39,40,41,42,43,44,45,46,47,48,49,50,51,52,53,{"$f":"WEEKNUM(JY8,21)","v":1},2,3,4,5,6,7,8,9,10,11,12,13,14,15,16,17,18,19,20,21,22,23,24,25,26,27,28,29,30,31,32,33,34,35,36,37,38,39,40,41,42,43,44,45,46,47,48,49,50,51,52,1,2,3,4,5,6,7,8,9,10,11,12,13,{"$f":"WEEKNUM(ML8,21)","v":14},15,16,17,18,19,20,21,22,23,24,25,26,27,28,29,30,31,32,33,34,35,36,37,38,39,40,41,42,43,44,45,46,47,48,49,50,51,52]

{"sheet":"Instellingen","index":4,"n_rows":385,"n_cols":10,"rows_kept":385,"cut":false,"hidden":false,"merged":[]}
["*","info@terzake-excel.nl"]
["(","0317 200 009"]
[null,"Naam medewerker",null,"Mogelijke acties",null,"Status",null,"Weken",null,"Jaren"]
[null,null,null,"Planning",null,"In voorbereiding",null,202136,null,2024]
[null,null,null,"Optimalisatie",null,"Lopend",null,202137,null,2025]
[null,null,null,null,null,"Afgerond",null,202138,null,2026]
[null,null,null,null,null,null,null,202139,null,2027]
[null,null,null,null,null,null,null,202140,null,2028]
[null,null,null,null,null,null,null,202141,null,2029]
[null,null,null,null,null,null,null,202142,null,2030]
[null,null,null,null,null,null,null,202143]
[null,null,null,null,null,null,null,202144]
[null,null,null,null,null,null,null,202145]
[null,null,null,null,null,null,null,202146]
[null,null,null,null,null,null,null,202147]
[null,null,null,null,null,null,null,202148]
[null,null,null,null,null,null,null,202149]
[null,null,null,null,null,null,null,202150]
[null,null,null,null,null,null,null,202151]
[null,null,null,null,null,null,null,202152]
[null,null,null,null,null,null,null,202201]
[null,null,null,null,null,null,null,202202]
[null,null,null,null,null,null,null,202203]
[null,null,null,null,null,null,null,202204]
[null,null,null,null,null,null,null,202205]
[null,null,null,null,null,null,null,202206]
[null,null,null,null,null,null,null,202207]
[null,null,null,null,null,null,null,202208]
[null,null,null,null,null,null,null,202209]
[null,null,null,null,null,null,null,202210]
[null,null,null,null,null,null,null,202211]
[null,null,null,null,null,null,null,202212]
[null,null,null,null,null,null,null,202213]
[null,null,null,null,null,null,null,202214]
[null,null,null,null,null,null,null,202215]
[null,null,null,null,null,null,null,202216]
[null,null,null,null,null,null,null,202217]
[null,null,null,null,null,null,null,202218]
[null,null,null,null,null,null,null,202219]
[null,null,null,null,null,null,null,202220]
[null,null,null,null,null,null,null,202221]
[null,null,null,null,null,null,null,202222]
[null,null,null,null,null,null,null,202223]
[null,null,null,null,null,null,null,202224]
[null,null,null,null,null,null,null,202225]
[null,null,null,null,null,null,null,202226]
[null,null,null,null,null,null,null,202227]
[null,null,null,null,null,null,null,202228]
[null,null,null,null,null,null,null,202229]
[null,null,null,null,null,null,null,202230]
[null,null,null,null,null,null,null,202231]
[null,null,null,null,null,null,null,202232]
[null,null,null,null,null,null,null,202233]
[null,null,null,null,null,null,null,202234]
[null,null,null,null,null,null,null,202235]
[null,null,null,null,null,null,null,202236]
[null,null,null,null,null,null,null,202237]
[null,null,null,null,null,null,null,202238]
[null,null,null,null,null,null,null,202239]
[null,null,null,null,null,null,null,202240]
[null,null,null,null,null,null,null,202241]
[null,null,null,null,null,null,null,202242]
[null,null,null,null,null,null,null,202243]
[null,null,null,null,null,null,null,202244]
[null,null,null,null,null,null,null,202245]
[null,null,null,null,null,null,null,202246]
[null,null,null,null,null,null,null,202247]
[null,null,null,null,null,null,null,202248]
[null,null,null,null,null,null,null,202249]
[null,null,null,null,null,null,null,202250]
[null,null,null,null,null,null,null,202251]
[null,null,null,null,null,null,null,202252]
[null,null,null,null,null,null,null,202301]
[null,null,null,null,null,null,null,202302]
[null,null,null,null,null,null,null,202303]
[null,null,null,null,null,null,null,202304]
[null,null,null,null,null,null,null,202305]
[null,null,null,null,null,null,null,202306]
[null,null,null,null,null,null,null,202307]
[null,null,null,null,null,null,null,202308]
[null,null,null,null,null,null,null,202309]
[null,null,null,null,null,null,null,202310]
[null,null,null,null,null,null,null,202311]
[null,null,null,null,null,null,null,202312]
[null,null,null,null,null,null,null,202313]
[null,null,null,null,null,null,null,202314]
[null,null,null,null,null,null,null,202315]
[null,null,null,null,null,null,null,202316]
[null,null,null,null,null,null,null,202317]
[null,null,null,null,null,null,null,202318]
[null,null,null,null,null,null,null,202319]
[null,null,null,null,null,null,null,202320]
[null,null,null,null,null,null,null,202321]
[null,null,null,null,null,null,null,202322]
[null,null,null,null,null,null,null,202323]
[null,null,null,null,null,null,null,202324]
[null,null,null,null,null,null,null,202325]
[null,null,null,null,null,null,null,202326]
[null,null,null,null,null,null,null,202327]
[null,null,null,null,null,null,null,202328]
[null,null,null,null,null,null,null,202329]
[null,null,null,null,null,null,null,202330]
[null,null,null,null,null,null,null,202331]
[null,null,null,null,null,null,null,202332]
[null,null,null,null,null,null,null,202333]
[null,null,null,null,null,null,null,202334]
[null,null,null,null,null,null,null,202335]
[null,null,null,null,null,null,null,202336]
[null,null,null,null,null,null,null,202337]
[null,null,null,null,null,null,null,202338]
[null,null,null,null,null,null,null,202339]
[null,null,null,null,null,null,null,202340]
[null,null,null,null,null,null,null,202341]
[null,null,null,null,null,null,null,202342]
[null,null,null,null,null,null,null,202343]
[null,null,null,null,null,null,null,202344]
[null,null,null,null,null,null,null,202345]
[null,null,null,null,null,null,null,202346]
[null,null,null,null,null,null,null,202347]
[null,null,null,null,null,null,null,202348]
[null,null,null,null,null,null,null,202349]
[null,null,null,null,null,null,null,202350]
[null,null,null,null,null,null,null,202351]
[null,null,null,null,null,null,null,202352]
[null,null,null,null,null,null,null,202401]
[null,null,null,null,null,null,null,202402]
[null,null,null,null,null,null,null,202403]
[null,null,null,null,null,null,null,202404]
[null,null,null,null,null,null,null,202405]
[null,null,null,null,null,null,null,202406]
[null,null,null,null,null,null,null,202407]
[null,null,null,null,null,null,null,202408]
[null,null,null,null,null,null,null,202409]
[null,null,null,null,null,null,null,202410]
[null,null,null,null,null,null,null,202411]
[null,null,null,null,null,null,null,202412]
[null,null,null,null,null,null,null,202413]
[null,null,null,null,null,null,null,202414]
[null,null,null,null,null,null,null,202415]
[null,null,null,null,null,null,null,202416]
[null,null,null,null,null,null,null,202417]
[null,null,null,null,null,null,null,202418]
[null,null,null,null,null,null,null,202419]
[null,null,null,null,null,null,null,202420]
[null,null,null,null,null,null,null,202421]
[null,null,null,null,null,null,null,202422]
[null,null,null,null,null,null,null,202423]
[null,null,null,null,null,null,null,202424]
[null,null,null,null,null,null,null,202425]
[null,null,null,null,null,null,null,202426]
[null,null,null,null,null,null,null,202427]
[null,null,null,null,null,null,null,202428]
[null,null,null,null,null,null,null,202429]
[null,null,null,null,null,null,null,202430]
[null,null,null,null,null,null,null,202431]
[null,null,null,null,null,null,null,202432]
[null,null,null,null,null,null,null,202433]
[null,null,null,null,null,null,null,202434]
[null,null,null,null,null,null,null,202435]
[null,null,null,null,null,null,null,202436]
[null,null,null,null,null,null,null,202437]
[null,null,null,null,null,null,null,202438]
[null,null,null,null,null,null,null,202439]
[null,null,null,null,null,null,null,202440]
[null,null,null,null,null,null,null,202441]
[null,null,null,null,null,null,null,202442]
[null,null,null,null,null,null,null,202443]
[null,null,null,null,null,null,null,202444]
[null,null,null,null,null,null,null,202445]
[null,null,null,null,null,null,null,202446]
[null,null,null,null,null,null,null,202447]
[null,null,null,null,null,null,null,202448]
[null,null,null,null,null,null,null,202449]
[null,null,null,null,null,null,null,202450]
[null,null,null,null,null,null,null,202451]
[null,null,null,null,null,null,null,202452]
[null,null,null,null,null,null,null,202501]
[null,null,null,null,null,null,null,202502]
[null,null,null,null,null,null,null,202503]
[null,null,null,null,null,null,null,202504]
[null,null,null,null,null,null,null,202505]
[null,null,null,null,null,null,null,202506]
[null,null,null,null,null,null,null,202507]
[null,null,null,null,null,null,null,202508]
[null,null,null,null,null,null,null,202509]
[null,null,null,null,null,null,null,202510]
[null,null,null,null,null,null,null,202511]
[null,null,null,null,null,null,null,202512]
[null,null,null,null,null,null,null,202513]
[null,null,null,null,null,null,null,202514]
[null,null,null,null,null,null,null,202515]
[null,null,null,null,null,null,null,202516]
[null,null,null,null,null,null,null,202517]
[null,null,null,null,null,null,null,202518]
[null,null,null,null,null,null,null,202519]
[null,null,null,null,null,null,null,202520]
[null,null,null,null,null,null,null,202521]
[null,null,null,null,null,null,null,202522]
[null,null,null,null,null,null,null,202523]
[null,null,null,null,null,null,null,202524]
[null,null,null,null,null,null,null,202525]
[null,null,null,null,null,null,null,202526]
[null,null,null,null,null,null,null,202527]
[null,null,null,null,null,null,null,202528]
[null,null,null,null,null,null,null,202529]
[null,null,null,null,null,null,null,202530]
[null,null,null,null,null,null,null,202531]
[null,null,null,null,null,null,null,202532]
[null,null,null,null,null,null,null,202533]
[null,null,null,null,null,null,null,202534]
[null,null,null,null,null,null,null,202535]
[null,null,null,null,null,null,null,202536]
[null,null,null,null,null,null,null,202537]
[null,null,null,null,null,null,null,202538]
[null,null,null,null,null,null,null,202539]
[null,null,null,null,null,null,null,202540]
[null,null,null,null,null,null,null,202541]
[null,null,null,null,null,null,null,202542]
[null,null,null,null,null,null,null,202543]
[null,null,null,null,null,null,null,202544]
[null,null,null,null,null,null,null,202545]
[null,null,null,null,null,null,null,202546]
[null,null,null,null,null,null,null,202547]
[null,null,null,null,null,null,null,202548]
[null,null,null,null,null,null,null,202549]
[null,null,null,null,null,null,null,202550]
[null,null,null,null,null,null,null,202551]
[null,null,null,null,null,null,null,202552]
[null,null,null,null,null,null,null,202601]
[null,null,null,null,null,null,null,202602]
[null,null,null,null,null,null,null,202603]
[null,null,null,null,null,null,null,202604]
[null,null,null,null,null,null,null,202605]
[null,null,null,null,null,null,null,202606]
[null,null,null,null,null,null,null,202607]
[null,null,null,null,null,null,null,202608]
[null,null,null,null,null,null,null,202609]
[null,null,null,null,null,null,null,202610]
[null,null,null,null,null,null,null,202611]
[null,null,null,null,null,null,null,202612]
[null,null,null,null,null,null,null,202613]
[null,null,null,null,null,null,null,202614]
[null,null,null,null,null,null,null,202615]
[null,null,null,null,null,null,null,202616]
[null,null,null,null,null,null,null,202617]
[null,null,null,null,null,null,null,202618]
[null,null,null,null,null,null,null,202619]
[null,null,null,null,null,null,null,202620]
[null,null,null,null,null,null,null,202621]
[null,null,null,null,null,null,null,202622]
[null,null,null,null,null,null,null,202623]
[null,null,null,null,null,null,null,202624]
[null,null,null,null,null,null,null,202625]
[null,null,null,null,null,null,null,202626]
[null,null,null,null,null,null,null,202627]
[null,null,null,null,null,null,null,202628]
[null,null,null,null,null,null,null,202629]
[null,null,null,null,null,null,null,202630]
[null,null,null,null,null,null,null,202631]
[null,null,null,null,null,null,null,202632]
[null,null,null,null,null,null,null,202633]
[null,null,null,null,null,null,null,202634]
[null,null,null,null,null,null,null,202635]
[null,null,null,null,null,null,null,202636]
[null,null,null,null,null,null,null,202637]
[null,null,null,null,null,null,null,202638]
[null,null,null,null,null,null,null,202639]
[null,null,null,null,null,null,null,202640]
[null,null,null,null,null,null,null,202641]
[null,null,null,null,null,null,null,202642]
[null,null,null,null,null,null,null,202643]
[null,null,null,null,null,null,null,202644]
[null,null,null,null,null,null,null,202645]
[null,null,null,null,null,null,null,202646]
[null,null,null,null,null,null,null,202647]
[null,null,null,null,null,null,null,202648]
[null,null,null,null,null,null,null,202649]
[null,null,null,null,null,null,null,202650]
[null,null,null,null,null,null,null,202651]
[null,null,null,null,null,null,null,202652]
[null,null,null,null,null,null,null,202653]
[null,null,null,null,null,null,null,202701]
[null,null,null,null,null,null,null,202702]
[null,null,null,null,null,null,null,202703]
[null,null,null,null,null,null,null,202704]
[null,null,null,null,null,null,null,202705]
[null,null,null,null,null,null,null,202706]
[null,null,null,null,null,null,null,202707]
[null,null,null,null,null,null,null,202708]
[null,null,null,null,null,null,null,202709]
[null,null,null,null,null,null,null,202710]
[null,null,null,null,null,null,null,202711]
[null,null,null,null,null,null,null,202712]
[null,null,null,null,null,null,null,202713]
[null,null,null,null,null,null,null,202714]
[null,null,null,null,null,null,null,202715]
[null,null,null,null,null,null,null,202716]
[null,null,null,null,null,null,null,202717]
[null,null,null,null,null,null,null,202718]
[null,null,null,null,null,null,null,202719]
[null,null,null,null,null,null,null,202720]
[null,null,null,null,null,null,null,202721]
[null,null,null,null,null,null,null,202722]
[null,null,null,null,null,null,null,202723]
[null,null,null,null,null,null,null,202724]
[null,null,null,null,null,null,null,202725]
[null,null,null,null,null,null,null,202726]
[null,null,null,null,null,null,null,202727]
[null,null,null,null,null,null,null,202728]
[null,null,null,null,null,null,null,202729]
[null,null,null,null,null,null,null,202730]
[null,null,null,null,null,null,null,202731]
[null,null,null,null,null,null,null,202732]
[null,null,null,null,null,null,null,202733]
[null,null,null,null,null,null,null,202734]
[null,null,null,null,null,null,null,202735]
[null,null,null,null,null,null,null,202736]
[null,null,null,null,null,null,null,202737]
[null,null,null,null,null,null,null,202738]
[null,null,null,null,null,null,null,202739]
[null,null,null,null,null,null,null,202740]
[null,null,null,null,null,null,null,202741]
[null,null,null,null,null,null,null,202742]
[null,null,null,null,null,null,null,202743]
[null,null,null,null,null,null,null,202744]
[null,null,null,null,null,null,null,202745]
[null,null,null,null,null,null,null,202746]
[null,null,null,null,null,null,null,202747]
[null,null,null,null,null,null,null,202748]
[null,null,null,null,null,null,null,202749]
[null,null,null,null,null,null,null,202750]
[null,null,null,null,null,null,null,202751]
[null,null,null,null,null,null,null,202752]
[null,null,null,null,null,null,null,202801]
[null,null,null,null,null,null,null,202802]
[null,null,null,null,null,null,null,202803]
[null,null,null,null,null,null,null,202804]
[null,null,null,null,null,null,null,202805]
[null,null,null,null,null,null,null,202806]
[null,null,null,null,null,null,null,202807]
[null,null,null,null,null,null,null,202808]
[null,null,null,null,null,null,null,202809]
[null,null,null,null,null,null,null,202810]
[null,null,null,null,null,null,null,202811]
[null,null,null,null,null,null,null,202812]
[null,null,null,null,null,null,null,202813]
[null,null,null,null,null,null,null,202814]
[null,null,null,null,null,null,null,202815]
[null,null,null,null,null,null,null,202816]
[null,null,null,null,null,null,null,202817]
[null,null,null,null,null,null,null,202818]
[null,null,null,null,null,null,null,202819]
[null,null,null,null,null,null,null,202820]
[null,null,null,null,null,null,null,202821]
[null,null,null,null,null,null,null,202822]
[null,null,null,null,null,null,null,202823]
[null,null,null,null,null,null,null,202824]
[null,null,null,null,null,null,null,202825]
[null,null,null,null,null,null,null,202826]
[null,null,null,null,null,null,null,202827]
[null,null,null,null,null,null,null,202828]
[null,null,null,null,null,null,null,202829]
[null,null,null,null,null,null,null,202830]
[null,null,null,null,null,null,null,202831]
[null,null,null,null,null,null,null,202832]
[null,null,null,null,null,null,null,202833]
[null,null,null,null,null,null,null,202834]
[null,null,null,null,null,null,null,202835]
[null,null,null,null,null,null,null,202836]
[null,null,null,null,null,null,null,202837]
[null,null,null,null,null,null,null,202838]
[null,null,null,null,null,null,null,202839]
[null,null,null,null,null,null,null,202840]
[null,null,null,null,null,null,null,202841]
[null,null,null,null,null,null,null,202842]
[null,null,null,null,null,null,null,202843]
[null,null,null,null,null,null,null,202844]
[null,null,null,null,null,null,null,202845]
[null,null,null,null,null,null,null,202846]
[null,null,null,null,null,null,null,202847]
[null,null,null,null,null,null,null,202848]
[null,null,null,null,null,null,null,202849]
[null,null,null,null,null,null,null,202850]
[null,null,null,null,null,null,null,202851]
[null,null,null,null,null,null,null,202852]

{"sheet":"Voorbeeld rapportage","index":5,"n_rows":15,"n_cols":33,"rows_kept":15,"cut":false,"hidden":false,"merged":[]}
[]
[]
[]
[]
[null,null,null,null,null,null,"Dit is een voorbeeldrapportage. Wil je een eigen projectplanning op maat inclusief rapportage? Neem dan contact met ons op!",null,null,null,null,null,null,null,null,null,null,null,null,null,null,null,null,null,null,null,null,null,"Projectnaam","Uren Budget","Uren ingepland"]
["*","info@terzake-excel.nl",null,null,null,null,null,null,null,null,null,null,null,null,null,null,null,null,null,null,null,null,null,null,null,null,null,null,"A",150,100]
["(","0317 200 009",null,null,null,null,"Mogelijke aanvullingen in de rest van de projectplanning zijn onder andere: het inplannen van uren, beschikbaarheid van medewerkers controleren, budget van een projectplanning bijhouden.",null,null,null,null,null,null,null,null,null,null,null,null,null,null,null,null,null,null,null,null,null,"B",360,200]
[null,null,null,null,null,null,null,null,null,null,null,null,null,null,null,null,null,null,null,null,null,null,null,null,null,null,null,null,"C",400,410]
[null,null,null,null,null,null,null,null,null,null,null,null,null,null,null,null,null,null,null,null,null,null,null,null,null,null,null,null,"D",150,200]
[]
[null,null,null,null,null,null,null,null,null,null,null,null,null,null,null,null,null,null,null,null,null,null,null,null,null,null,null,null,null,"2024-Q1","2024-Q2","2024-Q3","2024-Q4"]
[null,null,null,null,null,null,null,null,null,null,null,null,null,null,null,null,null,null,null,null,null,null,null,null,null,null,null,null,"A",1000,1000,2000,3000]
[null,null,null,null,null,null,null,null,null,null,null,null,null,null,null,null,null,null,null,null,null,null,null,null,null,null,null,null,"B",500,1500,500,2000]
[null,null,null,null,null,null,null,null,null,null,null,null,null,null,null,null,null,null,null,null,null,null,null,null,null,null,null,null,"C",3000,2000,4000,1000]
[null,null,null,null,null,null,null,null,null,null,null,null,null,null,null,null,null,null,null,null,null,null,null,null,null,null,null,null,"D",1500,500,2000,500]